{"text_format":"1","workbook":"xlsx","n_sheets":5,"sheets":["MPPT","Modules","Regulator","Calculation table","Language"],"not_rendered":{"charts":2,"images":14,"macros":1,"external_links":0,"defined_names":16,"comments":0,"pivot_tables":0},"unopened":[],"bounds":{"document_bytes":16777216,"sheet_cells":100000,"rows_first":2000,"rows_last":500,"rows_between":2000,"halvings":0,"cell_chars":16384,"cell_head_chars":4096},"cells_cut":0,"cells_raw":0,"read":"whole","date_system":"1900"}

{"sheet":"MPPT","index":0,"n_rows":88,"n_cols":19,"rows_kept":88,"cut":false,"hidden":false,"merged":[[64,8,64,11],[26,10,26,14],[27,10,27,14],[28,10,28,14],[21,10,21,14],[22,10,22,14],[23,10,23,14],[24,10,24,14],[25,10,25,14],[1,6,1,12],[9,10,9,12],[12,10,12,11],[13,10,13,11],[3,5,3,6],[6,5,6,6],[10,3,10,5],[6,10,6,11],[8,10,8,12],[4,3,4,8],[2,3,2,8],[2,10,2,15],[31,4,31,7],[31,12,31,15],[3,12,3,14],[4,10,4,16],[27,3,27,6],[28,3,28,5],[28,6,28,7],[22,3,22,6],[23,3,23,6],[24,3,24,6],[25,3,25,6],[26,3,26,6],[19,3,19,6],[20,3,20,6],[21,3,21,6],[12,5,12,6],[65,12,65,13],[65,14,65,15],[66,9,66,10],[67,9,67,10],[68,9,68,10],[66,12,66,13],[67,12,67,13],[68,12,68,13],[69,9,69,10],[70,9,70,10],[71,9,71,10],[72,9,72,10],[73,9,73,10],[69,12,69,13],[71,14,71,15],[72,14,72,15],[73,14,73,15],[66,14,66,15],[67,14,67,15],[68,14,68,15],[69,14,69,15],[70,14,70,15]]}
[]
[null,null,null,null,null,null,{"$f":"CHOOSE($J$3,INDEX(tab_LANGUAGE[[ENGLISH]:[PORTUGUÊS]],67,_ENGLISH),INDEX(tab_LANGUAGE[[ENGLISH]:[PORTUGUÊS]],67,_DUTCH),INDEX(tab_LANGUAGE[[ENGLISH]:[PORTUGUÊS]],67,_SLOVENSKY),INDEX(tab_LANGUAGE[[ENGLISH]:[PORTUGUÊS]],67,_DEUTSCH),INDEX(tab_LANGUAGE[[ENGLISH]:[PORTUGUÊS]],67,_FRANCAIS),INDEX(tab_LANGUAGE[[ENGLISH]:[PORTUGUÊS]],67,_PORTUGUÊS))","v":"Regulátor nabíjania Blue- & SmartSolar MPPT"}]
[null,null,null,{"$f":"IF(H24=\"N.A.\",\"\",IF('Calculation table'!C49>1.3,CHOOSE($J$3,INDEX(tab_LANGUAGE[[ENGLISH]:[PORTUGUÊS]],39,_ENGLISH),INDEX(tab_LANGUAGE[[ENGLISH]:[PORTUGUÊS]],39,_DUTCH),INDEX(tab_LANGUAGE[[ENGLISH]:[PORTUGUÊS]],39,_SLOVENSKY),INDEX(tab_LANGUAGE[[ENGLISH]:[PORTUGUÊS]],39,_DEUTSCH),INDEX(tab_LANGUAGE[[ENGLISH]:[PORTUGUÊS]],39,_FRANCAIS),INDEX(tab_LANGUAGE[[ENGLISH]:[PORTUGUÊS]],39,_PORTUGUÊS)),\"\"))","v":""},null,null,null,null,null,3,{"$f":"IF(H25=\"N.A.\",\"\",IF('Calculation table'!E50=TRUE,CHOOSE($J$3,INDEX(tab_LANGUAGE[[ENGLISH]:[PORTUGUÊS]],49,_ENGLISH),INDEX(tab_LANGUAGE[[ENGLISH]:[PORTUGUÊS]],49,_DUTCH),INDEX(tab_LANGUAGE[[ENGLISH]:[PORTUGUÊS]],49,_SLOVENSKY),INDEX(tab_LANGUAGE[[ENGLISH]:[PORTUGUÊS]],49,_DEUTSCH),INDEX(tab_LANGUAGE[[ENGLISH]:[PORTUGUÊS]],49,_FRANCAIS),INDEX(tab_LANGUAGE[[ENGLISH]:[PORTUGUÊS]],49,_PORTUGUÊS)),\"\"))","v":""}]
[null,null,null,21,null,{"$f":"CHOOSE($J$3,INDEX(tab_LANGUAGE[[ENGLISH]:[PORTUGUÊS]],1,_ENGLISH),INDEX(tab_LANGUAGE[[ENGLISH]:[PORTUGUÊS]],1,_DUTCH),INDEX(tab_LANGUAGE[[ENGLISH]:[PORTUGUÊS]],1,_SLOVENSKY),INDEX(tab_LANGUAGE[[ENGLISH]:[PORTUGUÊS]],1,_DEUTSCH),INDEX(tab_LANGUAGE[[ENGLISH]:[PORTUGUÊS]],1,_FRANCAIS),INDEX(tab_LANGUAGE[[ENGLISH]:[PORTUGUÊS]],1,_PORTUGUÊS))","v":"Modul:"},null,null,null,null,null,null,{"$f":"CHOOSE($J$3,INDEX(tab_LANGUAGE[[ENGLISH]:[PORTUGUÊS]],9,_ENGLISH),INDEX(tab_LANGUAGE[[ENGLISH]:[PORTUGUÊS]],9,_DUTCH),INDEX(tab_LANGUAGE[[ENGLISH]:[PORTUGUÊS]],9,_SLOVENSKY),INDEX(tab_LANGUAGE[[ENGLISH]:[PORTUGUÊS]],9,_DEUTSCH),INDEX(tab_LANGUAGE[[ENGLISH]:[PORTUGUÊS]],9,_FRANCAIS),INDEX(tab_LANGUAGE[[ENGLISH]:[PORTUGUÊS]],9,_PORTUGUÊS))","v":"Regulátor:"}]
[null,null,null,{"$f":"INDEX(tab_MODUL[Názov],_Modul,1)","v":"CanadianSolar HiKu PERC CS3W 455MS"},null,null,null,null,null,null,{"$f":"INDEX(Regulator!C2:C17,_Regulator,1)","v":"SmartSolar MPPT 250/100 Tr/Tr VE.Can/MC4"}]
[]
[null,null,null,null,null,{"$f":"CHOOSE($J$3,INDEX(tab_LANGUAGE[[ENGLISH]:[PORTUGUÊS]],64,_ENGLISH),INDEX(tab_LANGUAGE[[ENGLISH]:[PORTUGUÊS]],64,_DUTCH),INDEX(tab_LANGUAGE[[ENGLISH]:[PORTUGUÊS]],64,_SLOVENSKY),INDEX(tab_LANGUAGE[[ENGLISH]:[PORTUGUÊS]],64,_DEUTSCH),INDEX(tab_LANGUAGE[[ENGLISH]:[PORTUGUÊS]],64,_FRANCAIS),INDEX(tab_LANGUAGE[[ENGLISH]:[PORTUGUÊS]],64,_PORTUGUÊS))","v":"Počet modulov"},null,null,null,null,{"$f":"CHOOSE($J$3,INDEX(tab_LANGUAGE[[ENGLISH]:[PORTUGUÊS]],10,_ENGLISH),INDEX(tab_LANGUAGE[[ENGLISH]:[PORTUGUÊS]],10,_DUTCH),INDEX(tab_LANGUAGE[[ENGLISH]:[PORTUGUÊS]],10,_SLOVENSKY),INDEX(tab_LANGUAGE[[ENGLISH]:[PORTUGUÊS]],10,_DEUTSCH),INDEX(tab_LANGUAGE[[ENGLISH]:[PORTUGUÊS]],10,_FRANCAIS),INDEX(tab_LANGUAGE[[ENGLISH]:[PORTUGUÊS]],10,_PORTUGUÊS))","v":"Systémové napätie:"},null,{"$f":"INDEX(Q7:Q10,K8,1)","v":48},null,null,2.5,12]
[null,null,null,null,null,null,null,null,null,null,4,null,null,null,null,4,24]
[null,null,null,{"$f":"CHOOSE($J$3,INDEX(tab_LANGUAGE[[ENGLISH]:[PORTUGUÊS]],2,_ENGLISH),INDEX(tab_LANGUAGE[[ENGLISH]:[PORTUGUÊS]],2,_DUTCH),INDEX(tab_LANGUAGE[[ENGLISH]:[PORTUGUÊS]],2,_SLOVENSKY),INDEX(tab_LANGUAGE[[ENGLISH]:[PORTUGUÊS]],2,_DEUTSCH),INDEX(tab_LANGUAGE[[ENGLISH]:[PORTUGUÊS]],2,_FRANCAIS),INDEX(tab_LANGUAGE[[ENGLISH]:[PORTUGUÊS]],2,_PORTUGUÊS))","v":"Do série:"},3,null,{"$f":"CHOOSE($J$3,INDEX(tab_LANGUAGE[[ENGLISH]:[PORTUGUÊS]],3,_ENGLISH),INDEX(tab_LANGUAGE[[ENGLISH]:[PORTUGUÊS]],3,_DUTCH),INDEX(tab_LANGUAGE[[ENGLISH]:[PORTUGUÊS]],3,_SLOVENSKY),INDEX(tab_LANGUAGE[[ENGLISH]:[PORTUGUÊS]],3,_DEUTSCH),INDEX(tab_LANGUAGE[[ENGLISH]:[PORTUGUÊS]],3,_FRANCAIS),INDEX(tab_LANGUAGE[[ENGLISH]:[PORTUGUÊS]],3,_PORTUGUÊS))","v":"Paralelne:"},2,null,null,{"$f":"CHOOSE($J$3,INDEX(tab_LANGUAGE[[ENGLISH]:[PORTUGUÊS]],31,_ENGLISH),INDEX(tab_LANGUAGE[[ENGLISH]:[PORTUGUÊS]],31,_DUTCH),INDEX(tab_LANGUAGE[[ENGLISH]:[PORTUGUÊS]],31,_SLOVENSKY),INDEX(tab_LANGUAGE[[ENGLISH]:[PORTUGUÊS]],31,_DEUTSCH),INDEX(tab_LANGUAGE[[ENGLISH]:[PORTUGUÊS]],31,_FRANCAIS),INDEX(tab_LANGUAGE[[ENGLISH]:[PORTUGUÊS]],31,_PORTUGUÊS))","v":"Dĺžka kábla, modul k MPPT *"},null,null,null,null,6,36]
[null,null,null,null,null,null,null,null,null,null,10,null,null,null,null,10,48]
[null,null,null,{"$f":"CHOOSE($J$3,INDEX(tab_LANGUAGE[[ENGLISH]:[PORTUGUÊS]],4,_ENGLISH),INDEX(tab_LANGUAGE[[ENGLISH]:[PORTUGUÊS]],4,_DUTCH),INDEX(tab_LANGUAGE[[ENGLISH]:[PORTUGUÊS]],4,_SLOVENSKY),INDEX(tab_LANGUAGE[[ENGLISH]:[PORTUGUÊS]],4,_DEUTSCH),INDEX(tab_LANGUAGE[[ENGLISH]:[PORTUGUÊS]],4,_FRANCAIS),INDEX(tab_LANGUAGE[[ENGLISH]:[PORTUGUÊS]],4,_PORTUGUÊS))","v":"Celkový FV výkon @STC:"},null,null,{"$f":"_Serial*_Paralel*INDEX(_Moduls,_Modul,3)","v":2730},{"$f":"CHOOSE($J$3,INDEX(tab_LANGUAGE[[ENGLISH]:[PORTUGUÊS]],5,_ENGLISH),INDEX(tab_LANGUAGE[[ENGLISH]:[PORTUGUÊS]],5,_DUTCH),INDEX(tab_LANGUAGE[[ENGLISH]:[PORTUGUÊS]],5,_SLOVENSKY),INDEX(tab_LANGUAGE[[ENGLISH]:[PORTUGUÊS]],5,_DEUTSCH),INDEX(tab_LANGUAGE[[ENGLISH]:[PORTUGUÊS]],5,_FRANCAIS),INDEX(tab_LANGUAGE[[ENGLISH]:[PORTUGUÊS]],5,_PORTUGUÊS))","v":"Wp"},null,null,null,null,null,null,null,16]
[null,null,null,null,null,null,null,null,null,null,null,null,null,null,null,25]
[null,null,null,null,null,{"$f":"CHOOSE($J$3,INDEX(tab_LANGUAGE[[ENGLISH]:[PORTUGUÊS]],6,_ENGLISH),INDEX(tab_LANGUAGE[[ENGLISH]:[PORTUGUÊS]],6,_DUTCH),INDEX(tab_LANGUAGE[[ENGLISH]:[PORTUGUÊS]],6,_SLOVENSKY),INDEX(tab_LANGUAGE[[ENGLISH]:[PORTUGUÊS]],6,_DEUTSCH),INDEX(tab_LANGUAGE[[ENGLISH]:[PORTUGUÊS]],6,_FRANCAIS),INDEX(tab_LANGUAGE[[ENGLISH]:[PORTUGUÊS]],6,_PORTUGUÊS))","v":"Teplota modulu:"},null,null,null,null,{"$f":"CHOOSE($J$3,INDEX(tab_LANGUAGE[[ENGLISH]:[PORTUGUÊS]],32,_ENGLISH),INDEX(tab_LANGUAGE[[ENGLISH]:[PORTUGUÊS]],32,_DUTCH),INDEX(tab_LANGUAGE[[ENGLISH]:[PORTUGUÊS]],32,_SLOVENSKY),INDEX(tab_LANGUAGE[[ENGLISH]:[PORTUGUÊS]],32,_DEUTSCH),INDEX(tab_LANGUAGE[[ENGLISH]:[PORTUGUÊS]],32,_FRANCAIS),INDEX(tab_LANGUAGE[[ENGLISH]:[PORTUGUÊS]],32,_PORTUGUÊS))","v":"Prierez:"},null,null,null,null,35]
[null,null,null,null,null,"°C","°F",null,null,null,{"$f":"INDEX($P$7:$P$13,$K$15,1)","v":6}]
[null,null,null,null,null,null,null,null,null,null,3]
[null,null,null,{"$f":"CHOOSE($J$3,INDEX(tab_LANGUAGE[[ENGLISH]:[PORTUGUÊS]],7,_ENGLISH),INDEX(tab_LANGUAGE[[ENGLISH]:[PORTUGUÊS]],7,_DUTCH),INDEX(tab_LANGUAGE[[ENGLISH]:[PORTUGUÊS]],7,_SLOVENSKY),INDEX(tab_LANGUAGE[[ENGLISH]:[PORTUGUÊS]],7,_DEUTSCH),INDEX(tab_LANGUAGE[[ENGLISH]:[PORTUGUÊS]],7,_FRANCAIS),INDEX(tab_LANGUAGE[[ENGLISH]:[PORTUGUÊS]],7,_PORTUGUÊS))","v":"Min."},{"$f":"IF(_Temp=1, E17-40&\" °C\", ((E17-40)*9/5)+32& \" °F\")","v":"-15 °C"},null,{"$f":"CHOOSE($J$3,INDEX(tab_LANGUAGE[[ENGLISH]:[PORTUGUÊS]],8,_ENGLISH),INDEX(tab_LANGUAGE[[ENGLISH]:[PORTUGUÊS]],8,_DUTCH),INDEX(tab_LANGUAGE[[ENGLISH]:[PORTUGUÊS]],8,_SLOVENSKY),INDEX(tab_LANGUAGE[[ENGLISH]:[PORTUGUÊS]],8,_DEUTSCH),INDEX(tab_LANGUAGE[[ENGLISH]:[PORTUGUÊS]],8,_FRANCAIS),INDEX(tab_LANGUAGE[[ENGLISH]:[PORTUGUÊS]],8,_PORTUGUÊS))","v":"Max."},{"$f":"IF(_Temp=1, H17&\" °C\", (H17*9/5)+32&\" °F\")","v":"45 °C"}]
[null,null,null,16,25,null,null,45]
[null,null,null,null,null,null,null,null,1,null,null,null,null,null,null,null,false]
[]
[null,null,null,{"$f":"CHOOSE($J$3,INDEX(tab_LANGUAGE[[ENGLISH]:[PORTUGUÊS]],11,_ENGLISH),INDEX(tab_LANGUAGE[[ENGLISH]:[PORTUGUÊS]],11,_DUTCH),INDEX(tab_LANGUAGE[[ENGLISH]:[PORTUGUÊS]],11,_SLOVENSKY),INDEX(tab_LANGUAGE[[ENGLISH]:[PORTUGUÊS]],11,_DEUTSCH),INDEX(tab_LANGUAGE[[ENGLISH]:[PORTUGUÊS]],11,_FRANCAIS),INDEX(tab_LANGUAGE[[ENGLISH]:[PORTUGUÊS]],11,_PORTUGUÊS))","v":"Max. vstupné napätie"},null,null,null,{"$f":"INDEX(_Regulators,_Regulator,7)","v":250},null,null,{"$f":"CHOOSE($J$3,INDEX(tab_LANGUAGE[[ENGLISH]:[PORTUGUÊS]],34,_ENGLISH),INDEX(tab_LANGUAGE[[ENGLISH]:[PORTUGUÊS]],34,_DUTCH),INDEX(tab_LANGUAGE[[ENGLISH]:[PORTUGUÊS]],34,_SLOVENSKY),INDEX(tab_LANGUAGE[[ENGLISH]:[PORTUGUÊS]],34,_DEUTSCH),INDEX(tab_LANGUAGE[[ENGLISH]:[PORTUGUÊS]],34,_FRANCAIS),INDEX(tab_LANGUAGE[[ENGLISH]:[PORTUGUÊS]],34,_PORTUGUÊS))","v":"Sú solárne moduly pokryté snehom väčšinu obdobia v roku?"},null,null,null,null,null,{"$f":"IF($Q$18=TRUE,IF(J3=6,INDEX(Language!B3:G40,35,6),IF(J3=5,INDEX(Language!B3:F37,35,1),IF(J3=6,INDEX(Language!B3:G40,35,6),IF(J3=4,INDEX(Language!B3:F37,35,2),IF(J3=3,INDEX(Language!B3:F37,35,3),IF(J3=2,INDEX(Language!B3:F37,35,4),INDEX(Language!B3:F37,35,5))))))),IF(J3=6,INDEX(Language!B3:G40,36,6),IF(J3=5,INDEX(Language!B3:F38,36,1),IF(J3=4,INDEX(Language!B3:F38,36,2),IF(J3=3,INDEX(Language!B3:F38,36,3),IF(J3=2,INDEX(Language!B3:F38,36,4),INDEX(Language!B3:F38,36,5)))))))","v":"Nie"}]
[null,null,null,{"$f":"CHOOSE($J$3,INDEX(tab_LANGUAGE[[ENGLISH]:[PORTUGUÊS]],12,_ENGLISH),INDEX(tab_LANGUAGE[[ENGLISH]:[PORTUGUÊS]],12,_DUTCH),INDEX(tab_LANGUAGE[[ENGLISH]:[PORTUGUÊS]],12,_SLOVENSKY),INDEX(tab_LANGUAGE[[ENGLISH]:[PORTUGUÊS]],12,_DEUTSCH),INDEX(tab_LANGUAGE[[ENGLISH]:[PORTUGUÊS]],12,_FRANCAIS),INDEX(tab_LANGUAGE[[ENGLISH]:[PORTUGUÊS]],12,_PORTUGUÊS))","v":"Max. FV napätie @ min. teplota"},null,null,null,{"$f":"'Calculation table'!F30","v":163.28159999999997}]
[null,null,null,{"$f":"CHOOSE($J$3,INDEX(tab_LANGUAGE[[ENGLISH]:[PORTUGUÊS]],13,_ENGLISH),INDEX(tab_LANGUAGE[[ENGLISH]:[PORTUGUÊS]],13,_DUTCH),INDEX(tab_LANGUAGE[[ENGLISH]:[PORTUGUÊS]],13,_SLOVENSKY),INDEX(tab_LANGUAGE[[ENGLISH]:[PORTUGUÊS]],13,_DEUTSCH),INDEX(tab_LANGUAGE[[ENGLISH]:[PORTUGUÊS]],13,_FRANCAIS),INDEX(tab_LANGUAGE[[ENGLISH]:[PORTUGUÊS]],13,_PORTUGUÊS))","v":"Min. vstupné napätie @ MPP"},null,null,null,{"$f":"'Calculation table'!C20","v":49},null,null,{"$f":"CHOOSE($J$3,INDEX(tab_LANGUAGE[[ENGLISH]:[PORTUGUÊS]],19,_ENGLISH),INDEX(tab_LANGUAGE[[ENGLISH]:[PORTUGUÊS]],19,_DUTCH),INDEX(tab_LANGUAGE[[ENGLISH]:[PORTUGUÊS]],19,_SLOVENSKY),INDEX(tab_LANGUAGE[[ENGLISH]:[PORTUGUÊS]],19,_DEUTSCH),INDEX(tab_LANGUAGE[[ENGLISH]:[PORTUGUÊS]],19,_FRANCAIS),INDEX(tab_LANGUAGE[[ENGLISH]:[PORTUGUÊS]],19,_PORTUGUÊS))","v":"Príklady lokalít s očakávanými teplotami:"}]
[null,null,null,{"$f":"CHOOSE($J$3,INDEX(tab_LANGUAGE[[ENGLISH]:[PORTUGUÊS]],14,_ENGLISH),INDEX(tab_LANGUAGE[[ENGLISH]:[PORTUGUÊS]],14,_DUTCH),INDEX(tab_LANGUAGE[[ENGLISH]:[PORTUGUÊS]],14,_SLOVENSKY),INDEX(tab_LANGUAGE[[ENGLISH]:[PORTUGUÊS]],14,_DEUTSCH),INDEX(tab_LANGUAGE[[ENGLISH]:[PORTUGUÊS]],14,_FRANCAIS),INDEX(tab_LANGUAGE[[ENGLISH]:[PORTUGUÊS]],14,_PORTUGUÊS))","v":"Min. FV napätie @ max. teplota"},null,null,null,{"$f":"'Calculation table'!K37","v":114.8876568},null,null,{"$f":"CHOOSE($J$3,INDEX(tab_LANGUAGE[[ENGLISH]:[PORTUGUÊS]],20,_ENGLISH),INDEX(tab_LANGUAGE[[ENGLISH]:[PORTUGUÊS]],20,_DUTCH),INDEX(tab_LANGUAGE[[ENGLISH]:[PORTUGUÊS]],20,_SLOVENSKY),INDEX(tab_LANGUAGE[[ENGLISH]:[PORTUGUÊS]],20,_DEUTSCH),INDEX(tab_LANGUAGE[[ENGLISH]:[PORTUGUÊS]],20,_FRANCAIS),INDEX(tab_LANGUAGE[[ENGLISH]:[PORTUGUÊS]],20,_PORTUGUÊS))","v":"Byt na mobilnom dome, po celý rok (slabé vetranie)"},null,null,null,null,{"$f":"IF(_Temp=1, S23&\" °C\", ((S23)*9/5)+32&\" °F\")","v":"0 °C"},{"$f":"IF(_Temp=1, 70&\" °C\", ((70)*9/5)+32&\" °F\")","v":"70 °C"},null,{"$f":"IF($Q$18=TRUE,-10,0)","v":0}]
[null,null,null,{"$f":"CHOOSE($J$3,INDEX(tab_LANGUAGE[[ENGLISH]:[PORTUGUÊS]],15,_ENGLISH),INDEX(tab_LANGUAGE[[ENGLISH]:[PORTUGUÊS]],15,_DUTCH),INDEX(tab_LANGUAGE[[ENGLISH]:[PORTUGUÊS]],15,_SLOVENSKY),INDEX(tab_LANGUAGE[[ENGLISH]:[PORTUGUÊS]],15,_DEUTSCH),INDEX(tab_LANGUAGE[[ENGLISH]:[PORTUGUÊS]],15,_FRANCAIS),INDEX(tab_LANGUAGE[[ENGLISH]:[PORTUGUÊS]],15,_PORTUGUÊS))","v":"Max. výstupný prúd"},null,null,null,{"$f":"INDEX(_Regulators,_Regulator,15)","v":100},null,null,{"$f":"CHOOSE($J$3,INDEX(tab_LANGUAGE[[ENGLISH]:[PORTUGUÊS]],21,_ENGLISH),INDEX(tab_LANGUAGE[[ENGLISH]:[PORTUGUÊS]],21,_DUTCH),INDEX(tab_LANGUAGE[[ENGLISH]:[PORTUGUÊS]],21,_SLOVENSKY),INDEX(tab_LANGUAGE[[ENGLISH]:[PORTUGUÊS]],21,_DEUTSCH),INDEX(tab_LANGUAGE[[ENGLISH]:[PORTUGUÊS]],21,_FRANCAIS),INDEX(tab_LANGUAGE[[ENGLISH]:[PORTUGUÊS]],21,_PORTUGUÊS))","v":"Byt na mobilnom dome, len leto (slabé vetranie)"},null,null,null,null,"15 °C",{"$f":"IF(_Temp=1, 70&\" °C\", ((70)*9/5)+32& \" °F\")","v":"70 °C"},null,{"$f":"IF($Q$18=TRUE,5,15)","v":15}]
[null,null,null,{"$f":"CHOOSE($J$3,INDEX(tab_LANGUAGE[[ENGLISH]:[PORTUGUÊS]],16,_ENGLISH),INDEX(tab_LANGUAGE[[ENGLISH]:[PORTUGUÊS]],16,_DUTCH),INDEX(tab_LANGUAGE[[ENGLISH]:[PORTUGUÊS]],16,_SLOVENSKY),INDEX(tab_LANGUAGE[[ENGLISH]:[PORTUGUÊS]],16,_DEUTSCH),INDEX(tab_LANGUAGE[[ENGLISH]:[PORTUGUÊS]],16,_FRANCAIS),INDEX(tab_LANGUAGE[[ENGLISH]:[PORTUGUÊS]],16,_PORTUGUÊS))","v":"Max. prúd @ MPP min. tepl."},null,null,null,{"$f":"IF('Calculation table'!E20=0,\"N.A.\",'Calculation table'!F40)","v":61.974113968799998},null,null,{"$f":"CHOOSE($J$3,INDEX(tab_LANGUAGE[[ENGLISH]:[PORTUGUÊS]],22,_ENGLISH),INDEX(tab_LANGUAGE[[ENGLISH]:[PORTUGUÊS]],22,_DUTCH),INDEX(tab_LANGUAGE[[ENGLISH]:[PORTUGUÊS]],22,_SLOVENSKY),INDEX(tab_LANGUAGE[[ENGLISH]:[PORTUGUÊS]],22,_DEUTSCH),INDEX(tab_LANGUAGE[[ENGLISH]:[PORTUGUÊS]],22,_FRANCAIS),INDEX(tab_LANGUAGE[[ENGLISH]:[PORTUGUÊS]],22,_PORTUGUÊS))","v":"Ploché na lodi (slabé vetranie)"},null,null,null,null,"10 °C",{"$f":"IF(_Temp=1, 65&\" °C\", ((65)*9/5)+32& \" °F\")","v":"65 °C"},null,{"$f":"IF($Q$18=TRUE,0,10)","v":10}]
[null,null,null,null,null,null,null,{"$f":"IF(H25=\"N.A.\",\"\",IF('Calculation table'!F40=G26,CHOOSE($J$3,INDEX(tab_LANGUAGE[[ENGLISH]:[PORTUGUÊS]],27,_ENGLISH),INDEX(tab_LANGUAGE[[ENGLISH]:[PORTUGUÊS]],27,_DUTCH),INDEX(tab_LANGUAGE[[ENGLISH]:[PORTUGUÊS]],27,_SLOVENSKY),INDEX(tab_LANGUAGE[[ENGLISH]:[PORTUGUÊS]],27,_DEUTSCH),INDEX(tab_LANGUAGE[[ENGLISH]:[PORTUGUÊS]],27,_FRANCAIS),INDEX(tab_LANGUAGE[[ENGLISH]:[PORTUGUÊS]],27,_PORTUGUÊS)),\"\"))","v":""},null,null,{"$f":"CHOOSE($J$3,INDEX(tab_LANGUAGE[[ENGLISH]:[PORTUGUÊS]],23,_ENGLISH),INDEX(tab_LANGUAGE[[ENGLISH]:[PORTUGUÊS]],23,_DUTCH),INDEX(tab_LANGUAGE[[ENGLISH]:[PORTUGUÊS]],23,_SLOVENSKY),INDEX(tab_LANGUAGE[[ENGLISH]:[PORTUGUÊS]],23,_DEUTSCH),INDEX(tab_LANGUAGE[[ENGLISH]:[PORTUGUÊS]],23,_FRANCAIS),INDEX(tab_LANGUAGE[[ENGLISH]:[PORTUGUÊS]],23,_PORTUGUÊS))","v":"Naklonené na lodi (dobré vetranie)"},null,null,null,null,"5 °C",{"$f":"IF(_Temp=1, 60&\" °C\", ((60)*9/5)+32& \" °F\")","v":"60 °C"},null,{"$f":"IF($Q$18=TRUE,-5,5)","v":5}]
[null,null,null,{"$f":"CHOOSE($J$3,INDEX(tab_LANGUAGE[[ENGLISH]:[PORTUGUÊS]],17,_ENGLISH),INDEX(tab_LANGUAGE[[ENGLISH]:[PORTUGUÊS]],17,_DUTCH),INDEX(tab_LANGUAGE[[ENGLISH]:[PORTUGUÊS]],17,_SLOVENSKY),INDEX(tab_LANGUAGE[[ENGLISH]:[PORTUGUÊS]],17,_DEUTSCH),INDEX(tab_LANGUAGE[[ENGLISH]:[PORTUGUÊS]],17,_FRANCAIS),INDEX(tab_LANGUAGE[[ENGLISH]:[PORTUGUÊS]],17,_PORTUGUÊS))","v":"Max. prúd @ MPP max. tepl."},null,null,null,{"$f":"IF('Calculation table'!E20=0,\"N.A.\",'Calculation table'!G47)","v":53.384734289699992},null,null,{"$f":"CHOOSE($J$3,INDEX(tab_LANGUAGE[[ENGLISH]:[PORTUGUÊS]],24,_ENGLISH),INDEX(tab_LANGUAGE[[ENGLISH]:[PORTUGUÊS]],24,_DUTCH),INDEX(tab_LANGUAGE[[ENGLISH]:[PORTUGUÊS]],24,_SLOVENSKY),INDEX(tab_LANGUAGE[[ENGLISH]:[PORTUGUÊS]],24,_DEUTSCH),INDEX(tab_LANGUAGE[[ENGLISH]:[PORTUGUÊS]],24,_FRANCAIS),INDEX(tab_LANGUAGE[[ENGLISH]:[PORTUGUÊS]],24,_PORTUGUÊS))","v":"Šikmá strecha v teplej oblasti (dobré vetranie)"},null,null,null,null,"5 °C",{"$f":"IF(_Temp=1, 70&\" °C\", ((70)*9/5)+32& \" °F\")","v":"70 °C"},null,{"$f":"IF($Q$18=TRUE,-5,5)","v":5}]
[null,null,null,null,null,null,null,{"$f":"IF(H27=\"N.A.\",\"\",IF('Calculation table'!G47=G26,CHOOSE($J$3,INDEX(tab_LANGUAGE[[ENGLISH]:[PORTUGUÊS]],28,_ENGLISH),INDEX(tab_LANGUAGE[[ENGLISH]:[PORTUGUÊS]],28,_DUTCH),INDEX(tab_LANGUAGE[[ENGLISH]:[PORTUGUÊS]],28,_SLOVENSKY),INDEX(tab_LANGUAGE[[ENGLISH]:[PORTUGUÊS]],28,_DEUTSCH),INDEX(tab_LANGUAGE[[ENGLISH]:[PORTUGUÊS]],28,_FRANCAIS),INDEX(tab_LANGUAGE[[ENGLISH]:[PORTUGUÊS]],28,_PORTUGUÊS)),\"\"))","v":""},null,null,{"$f":"CHOOSE($J$3,INDEX(tab_LANGUAGE[[ENGLISH]:[PORTUGUÊS]],25,_ENGLISH),INDEX(tab_LANGUAGE[[ENGLISH]:[PORTUGUÊS]],25,_DUTCH),INDEX(tab_LANGUAGE[[ENGLISH]:[PORTUGUÊS]],25,_SLOVENSKY),INDEX(tab_LANGUAGE[[ENGLISH]:[PORTUGUÊS]],25,_DEUTSCH),INDEX(tab_LANGUAGE[[ENGLISH]:[PORTUGUÊS]],25,_FRANCAIS),INDEX(tab_LANGUAGE[[ENGLISH]:[PORTUGUÊS]],25,_PORTUGUÊS))","v":"Šikmá strecha v priemernej oblasti (dobré vetranie)"},null,null,null,null,"0 °C",{"$f":"IF(_Temp=1, 65&\" °C\", ((65)*9/5)+32& \" °F\")","v":"65 °C"},null,{"$f":"IF($Q$18=TRUE,-10,0)","v":0}]
[null,null,null,{"$f":"CHOOSE($J$3,INDEX(tab_LANGUAGE[[ENGLISH]:[PORTUGUÊS]],18,_ENGLISH),INDEX(tab_LANGUAGE[[ENGLISH]:[PORTUGUÊS]],18,_DUTCH),INDEX(tab_LANGUAGE[[ENGLISH]:[PORTUGUÊS]],18,_SLOVENSKY),INDEX(tab_LANGUAGE[[ENGLISH]:[PORTUGUÊS]],18,_DEUTSCH),INDEX(tab_LANGUAGE[[ENGLISH]:[PORTUGUÊS]],18,_FRANCAIS),INDEX(tab_LANGUAGE[[ENGLISH]:[PORTUGUÊS]],18,_PORTUGUÊS))","v":"Konfigurácia solárneho modulu"},null,null,{"$f":"IF('Calculation table'!E50=FALSE,IF(H21<=H20,IF(H25<=H24,IF(H23>H22,I29,J29),J29),J29),J29)","v":"Vyhovujúci"},null,{"$f":"CHOOSE($J$3,INDEX(tab_LANGUAGE[[ENGLISH]:[PORTUGUÊS]],37,_ENGLISH),INDEX(tab_LANGUAGE[[ENGLISH]:[PORTUGUÊS]],37,_DUTCH),INDEX(tab_LANGUAGE[[ENGLISH]:[PORTUGUÊS]],37,_SLOVENSKY),INDEX(tab_LANGUAGE[[ENGLISH]:[PORTUGUÊS]],37,_DEUTSCH),INDEX(tab_LANGUAGE[[ENGLISH]:[PORTUGUÊS]],37,_FRANCAIS),INDEX(tab_LANGUAGE[[ENGLISH]:[PORTUGUÊS]],37,_PORTUGUÊS))","v":"Vyhovujúci"},{"$f":"CHOOSE($J$3,INDEX(tab_LANGUAGE[[ENGLISH]:[PORTUGUÊS]],38,_ENGLISH),INDEX(tab_LANGUAGE[[ENGLISH]:[PORTUGUÊS]],38,_DUTCH),INDEX(tab_LANGUAGE[[ENGLISH]:[PORTUGUÊS]],38,_SLOVENSKY),INDEX(tab_LANGUAGE[[ENGLISH]:[PORTUGUÊS]],38,_DEUTSCH),INDEX(tab_LANGUAGE[[ENGLISH]:[PORTUGUÊS]],38,_FRANCAIS),INDEX(tab_LANGUAGE[[ENGLISH]:[PORTUGUÊS]],38,_PORTUGUÊS))","v":"Nevyhovujúci"},{"$f":"CHOOSE($J$3,INDEX(tab_LANGUAGE[[ENGLISH]:[PORTUGUÊS]],26,_ENGLISH),INDEX(tab_LANGUAGE[[ENGLISH]:[PORTUGUÊS]],26,_DUTCH),INDEX(tab_LANGUAGE[[ENGLISH]:[PORTUGUÊS]],26,_SLOVENSKY),INDEX(tab_LANGUAGE[[ENGLISH]:[PORTUGUÊS]],26,_DEUTSCH),INDEX(tab_LANGUAGE[[ENGLISH]:[PORTUGUÊS]],26,_FRANCAIS),INDEX(tab_LANGUAGE[[ENGLISH]:[PORTUGUÊS]],26,_PORTUGUÊS))","v":"Šikmá strecha na kopci (dobré vetranie)"},null,null,null,null,"-5 °C",{"$f":"IF(_Temp=1, 60&\" °C\", ((60)*9/5)+32& \" °F\")","v":"60 °C"},null,{"$f":"IF($Q$18=TRUE,-10,-5)","v":-5}]
[]
[]
[null,null,null,null,{"$f":"CHOOSE($J$3,INDEX(tab_LANGUAGE[[ENGLISH]:[PORTUGUÊS]],29,_ENGLISH),INDEX(tab_LANGUAGE[[ENGLISH]:[PORTUGUÊS]],29,_DUTCH),INDEX(tab_LANGUAGE[[ENGLISH]:[PORTUGUÊS]],29,_SLOVENSKY),INDEX(tab_LANGUAGE[[ENGLISH]:[PORTUGUÊS]],29,_DEUTSCH),INDEX(tab_LANGUAGE[[ENGLISH]:[PORTUGUÊS]],29,_FRANCAIS),INDEX(tab_LANGUAGE[[ENGLISH]:[PORTUGUÊS]],29,_PORTUGUÊS))","v":"Vstupné napätia"},null,null,null,null,null,null,null,{"$f":"CHOOSE($J$3,INDEX(tab_LANGUAGE[[ENGLISH]:[PORTUGUÊS]],30,_ENGLISH),INDEX(tab_LANGUAGE[[ENGLISH]:[PORTUGUÊS]],30,_DUTCH),INDEX(tab_LANGUAGE[[ENGLISH]:[PORTUGUÊS]],30,_SLOVENSKY),INDEX(tab_LANGUAGE[[ENGLISH]:[PORTUGUÊS]],30,_DEUTSCH),INDEX(tab_LANGUAGE[[ENGLISH]:[PORTUGUÊS]],30,_FRANCAIS),INDEX(tab_LANGUAGE[[ENGLISH]:[PORTUGUÊS]],30,_PORTUGUÊS))","v":"Nabíjacie prúdy"}]
[null,null,null,null,null,{"$f":"CHOOSE($J$3,INDEX(tab_LANGUAGE[[ENGLISH]:[PORTUGUÊS]],63,_ENGLISH),INDEX(tab_LANGUAGE[[ENGLISH]:[PORTUGUÊS]],63,_DUTCH),INDEX(tab_LANGUAGE[[ENGLISH]:[PORTUGUÊS]],63,_SLOVENSKY),INDEX(tab_LANGUAGE[[ENGLISH]:[PORTUGUÊS]],63,_DEUTSCH),INDEX(tab_LANGUAGE[[ENGLISH]:[PORTUGUÊS]],63,_FRANCAIS),INDEX(tab_LANGUAGE[[ENGLISH]:[PORTUGUÊS]],63,_PORTUGUÊS))","v":"Vytlačiť GRAF ako obrázok"},null,null,null,null,null,null,null,{"$f":"CHOOSE($J$3,INDEX(tab_LANGUAGE[[ENGLISH]:[PORTUGUÊS]],63,_ENGLISH),INDEX(tab_LANGUAGE[[ENGLISH]:[PORTUGUÊS]],63,_DUTCH),INDEX(tab_LANGUAGE[[ENGLISH]:[PORTUGUÊS]],63,_SLOVENSKY),INDEX(tab_LANGUAGE[[ENGLISH]:[PORTUGUÊS]],63,_DEUTSCH),INDEX(tab_LANGUAGE[[ENGLISH]:[PORTUGUÊS]],63,_FRANCAIS),INDEX(tab_LANGUAGE[[ENGLISH]:[PORTUGUÊS]],63,_PORTUGUÊS))","v":"Vytlačiť GRAF ako obrázok"}]
[]
[]
[]
[]
[]
[]
[]
[]
[]
[]
[]
[]
[]
[]
[]
[]
[]
[]
[]
[]
[]
[]
[]
[]
[]
[]
[]
[]
[]
[]
[]
[null,null,null,null,null,null,null,null,{"$f":"CHOOSE($J$3,INDEX(tab_LANGUAGE[[ENGLISH]:[PORTUGUÊS]],65,_ENGLISH),INDEX(tab_LANGUAGE[[ENGLISH]:[PORTUGUÊS]],65,_DUTCH),INDEX(tab_LANGUAGE[[ENGLISH]:[PORTUGUÊS]],65,_SLOVENSKY),INDEX(tab_LANGUAGE[[ENGLISH]:[PORTUGUÊS]],65,_DEUTSCH),INDEX(tab_LANGUAGE[[ENGLISH]:[PORTUGUÊS]],65,_FRANCAIS),INDEX(tab_LANGUAGE[[ENGLISH]:[PORTUGUÊS]],65,_PORTUGUÊS))","v":"Tabuľka hodnôt"}]
[null,null,{"$f":"C82","v":"Rad Voc max."},{"$f":"C87","v":"Rad Voc min."},{"$f":"C86","v":"Voc max."},{"$f":"C84","v":"Vmpp RUN min."},{"$f":"C85","v":"Rad Vmpp corr.max."},{"$f":"C83","v":"Rad Vmpp corr. min."},{"$f":"C88","v":"Voc START min."},null,{"$f":"CHOOSE($J$3,INDEX(tab_LANGUAGE[[ENGLISH]:[PORTUGUÊS]],66,_ENGLISH),INDEX(tab_LANGUAGE[[ENGLISH]:[PORTUGUÊS]],66,_DUTCH),INDEX(tab_LANGUAGE[[ENGLISH]:[PORTUGUÊS]],66,_SLOVENSKY),INDEX(tab_LANGUAGE[[ENGLISH]:[PORTUGUÊS]],66,_DEUTSCH),INDEX(tab_LANGUAGE[[ENGLISH]:[PORTUGUÊS]],66,_FRANCAIS),INDEX(tab_LANGUAGE[[ENGLISH]:[PORTUGUÊS]],66,_PORTUGUÊS))","v":"Teplota"},"Ibat max.","Ibat max. @ Impp",null,"Ibat min. @ Impp"]
[null,null,{"$f":"ROUND('Calculation table'!F30,1)","v":163.30000000000001},null,{"$f":"ROUND('Calculation table'!C30,1)","v":250},{"$f":"ROUND('Calculation table'!E30,1)","v":49},{"$f":"ROUND('Calculation table'!H30,1)","v":138},null,{"$f":"ROUND('Calculation table'!D30,1)","v":53},{"$f":"IF(_Temp=1,'Calculation table'!A30&\"°C\",'Calculation table'!A30&\"°F\")","v":"-15°C"},null,{"$f":"ROUND('Calculation table'!C40,1)","v":100},{"$f":"ROUND('Calculation table'!F40,1)","v":62}]
[null,null,{"$f":"ROUND('Calculation table'!F31,1)","v":161.4},null,{"$f":"ROUND('Calculation table'!C31,1)","v":250},{"$f":"ROUND('Calculation table'!E31,1)","v":49},{"$f":"ROUND('Calculation table'!H31,1)","v":136.1},null,{"$f":"ROUND('Calculation table'!D31,1)","v":53},{"$f":"IF(_Temp=1,'Calculation table'!A31&\"°C\",'Calculation table'!A31&\"°F\")","v":"-10°C"},null,{"$f":"ROUND('Calculation table'!C41,1)","v":100},{"$f":"ROUND('Calculation table'!F41,1)","v":61.3}]
[null,null,{"$f":"ROUND('Calculation table'!F32,1)","v":159.4},null,{"$f":"ROUND('Calculation table'!C32,1)","v":250},{"$f":"ROUND('Calculation table'!E32,1)","v":49},{"$f":"ROUND('Calculation table'!H32,1)","v":134.1},null,{"$f":"ROUND('Calculation table'!D32,1)","v":53},{"$f":"IF(_Temp=1,'Calculation table'!A32&\"°C\",'Calculation table'!A32&\"°F\")","v":"-5°C"},null,{"$f":"ROUND('Calculation table'!C42,1)","v":100},{"$f":"ROUND('Calculation table'!F42,1)","v":60.6}]
[null,null,{"$f":"ROUND('Calculation table'!F33,1)","v":157.5},null,{"$f":"ROUND('Calculation table'!C33,1)","v":250},{"$f":"ROUND('Calculation table'!E33,1)","v":49},{"$f":"ROUND('Calculation table'!H33,1)","v":132.19999999999999},null,{"$f":"ROUND('Calculation table'!D33,1)","v":53},{"$f":"IF(_Temp=1,'Calculation table'!A33&\"°C\",'Calculation table'!A33&\"°F\")","v":"0°C"},null,{"$f":"ROUND('Calculation table'!C43,1)","v":100},{"$f":"ROUND('Calculation table'!F43,1)","v":59.9}]
[null,null,null,{"$f":"ROUND('Calculation table'!I34,1)","v":146},{"$f":"ROUND('Calculation table'!C34,1)","v":250},{"$f":"ROUND('Calculation table'!E34,1)","v":49},null,{"$f":"ROUND('Calculation table'!K34,1)","v":120.7},{"$f":"ROUND('Calculation table'!D34,1)","v":53},{"$f":"IF(_Temp=1,'Calculation table'!A34&\"°C\",'Calculation table'!A34&\"°F\")","v":"30°C"},null,{"$f":"ROUND('Calculation table'!C44,1)","v":100},null,null,{"$f":"ROUND('Calculation table'!G44,1)","v":55.6}]
[null,null,null,{"$f":"ROUND('Calculation table'!I35,1)","v":144.1},{"$f":"ROUND('Calculation table'!C35,1)","v":250},{"$f":"ROUND('Calculation table'!E35,1)","v":49},null,{"$f":"ROUND('Calculation table'!K35,1)","v":118.7},{"$f":"ROUND('Calculation table'!D35,1)","v":53},{"$f":"IF(_Temp=1,'Calculation table'!A35&\"°C\",'Calculation table'!A35&\"°F\")","v":"35°C"},null,{"$f":"ROUND('Calculation table'!C45,1)","v":100},null,null,{"$f":"ROUND('Calculation table'!G45,1)","v":54.9}]
[null,null,null,{"$f":"ROUND('Calculation table'!I36,1)","v":142.1},{"$f":"ROUND('Calculation table'!C36,1)","v":250},{"$f":"ROUND('Calculation table'!E36,1)","v":49},null,{"$f":"ROUND('Calculation table'!K36,1)","v":116.8},{"$f":"ROUND('Calculation table'!D36,1)","v":53},{"$f":"IF(_Temp=1,'Calculation table'!A36&\"°C\",'Calculation table'!A36&\"°F\")","v":"40°C"},null,{"$f":"ROUND('Calculation table'!C46,1)","v":100},null,null,{"$f":"ROUND('Calculation table'!G46,1)","v":54.1}]
[null,null,null,{"$f":"ROUND('Calculation table'!I37,1)","v":140.19999999999999},{"$f":"ROUND('Calculation table'!C37,1)","v":250},{"$f":"ROUND('Calculation table'!E37,1)","v":49},null,{"$f":"ROUND('Calculation table'!K37,1)","v":114.9},{"$f":"ROUND('Calculation table'!D37,1)","v":53},{"$f":"IF(_Temp=1,'Calculation table'!A37&\"°C\",'Calculation table'!A37&\"°F\")","v":"45°C"},null,{"$f":"ROUND('Calculation table'!C47,1)","v":100},null,null,{"$f":"ROUND('Calculation table'!G47,1)","v":53.4}]
[]
[]
[]
[]
[]
[]
[]
[null,56,{"$f":"CHOOSE($J$3,INDEX(tab_LANGUAGE[[ENGLISH]:[PORTUGUÊS]],56,_ENGLISH),INDEX(tab_LANGUAGE[[ENGLISH]:[PORTUGUÊS]],56,_DUTCH),INDEX(tab_LANGUAGE[[ENGLISH]:[PORTUGUÊS]],56,_SLOVENSKY),INDEX(tab_LANGUAGE[[ENGLISH]:[PORTUGUÊS]],56,_DEUTSCH),INDEX(tab_LANGUAGE[[ENGLISH]:[PORTUGUÊS]],56,_FRANCAIS),INDEX(tab_LANGUAGE[[ENGLISH]:[PORTUGUÊS]],56,_PORTUGUÊS))","v":"Rad Voc max."}]
[null,57,{"$f":"CHOOSE($J$3,INDEX(tab_LANGUAGE[[ENGLISH]:[PORTUGUÊS]],57,_ENGLISH),INDEX(tab_LANGUAGE[[ENGLISH]:[PORTUGUÊS]],57,_DUTCH),INDEX(tab_LANGUAGE[[ENGLISH]:[PORTUGUÊS]],57,_SLOVENSKY),INDEX(tab_LANGUAGE[[ENGLISH]:[PORTUGUÊS]],57,_DEUTSCH),INDEX(tab_LANGUAGE[[ENGLISH]:[PORTUGUÊS]],57,_FRANCAIS),INDEX(tab_LANGUAGE[[ENGLISH]:[PORTUGUÊS]],57,_PORTUGUÊS))","v":"Rad Vmpp corr. min."}]
[null,58,{"$f":"CHOOSE($J$3,INDEX(tab_LANGUAGE[[ENGLISH]:[PORTUGUÊS]],58,_ENGLISH),INDEX(tab_LANGUAGE[[ENGLISH]:[PORTUGUÊS]],58,_DUTCH),INDEX(tab_LANGUAGE[[ENGLISH]:[PORTUGUÊS]],58,_SLOVENSKY),INDEX(tab_LANGUAGE[[ENGLISH]:[PORTUGUÊS]],58,_DEUTSCH),INDEX(tab_LANGUAGE[[ENGLISH]:[PORTUGUÊS]],58,_FRANCAIS),INDEX(tab_LANGUAGE[[ENGLISH]:[PORTUGUÊS]],58,_PORTUGUÊS))","v":"Vmpp RUN min."}]
[null,59,{"$f":"CHOOSE($J$3,INDEX(tab_LANGUAGE[[ENGLISH]:[PORTUGUÊS]],59,_ENGLISH),INDEX(tab_LANGUAGE[[ENGLISH]:[PORTUGUÊS]],59,_DUTCH),INDEX(tab_LANGUAGE[[ENGLISH]:[PORTUGUÊS]],59,_SLOVENSKY),INDEX(tab_LANGUAGE[[ENGLISH]:[PORTUGUÊS]],59,_DEUTSCH),INDEX(tab_LANGUAGE[[ENGLISH]:[PORTUGUÊS]],59,_FRANCAIS),INDEX(tab_LANGUAGE[[ENGLISH]:[PORTUGUÊS]],59,_PORTUGUÊS))","v":"Rad Vmpp corr.max."}]
[null,60,{"$f":"CHOOSE($J$3,INDEX(tab_LANGUAGE[[ENGLISH]:[PORTUGUÊS]],60,_ENGLISH),INDEX(tab_LANGUAGE[[ENGLISH]:[PORTUGUÊS]],60,_DUTCH),INDEX(tab_LANGUAGE[[ENGLISH]:[PORTUGUÊS]],60,_SLOVENSKY),INDEX(tab_LANGUAGE[[ENGLISH]:[PORTUGUÊS]],60,_DEUTSCH),INDEX(tab_LANGUAGE[[ENGLISH]:[PORTUGUÊS]],60,_FRANCAIS),INDEX(tab_LANGUAGE[[ENGLISH]:[PORTUGUÊS]],60,_PORTUGUÊS))","v":"Voc max."}]
[null,61,{"$f":"CHOOSE($J$3,INDEX(tab_LANGUAGE[[ENGLISH]:[PORTUGUÊS]],61,_ENGLISH),INDEX(tab_LANGUAGE[[ENGLISH]:[PORTUGUÊS]],61,_DUTCH),INDEX(tab_LANGUAGE[[ENGLISH]:[PORTUGUÊS]],61,_SLOVENSKY),INDEX(tab_LANGUAGE[[ENGLISH]:[PORTUGUÊS]],61,_DEUTSCH),INDEX(tab_LANGUAGE[[ENGLISH]:[PORTUGUÊS]],61,_FRANCAIS),INDEX(tab_LANGUAGE[[ENGLISH]:[PORTUGUÊS]],61,_PORTUGUÊS))","v":"Rad Voc min."}]
[null,62,{"$f":"CHOOSE($J$3,INDEX(tab_LANGUAGE[[ENGLISH]:[PORTUGUÊS]],62,_ENGLISH),INDEX(tab_LANGUAGE[[ENGLISH]:[PORTUGUÊS]],62,_DUTCH),INDEX(tab_LANGUAGE[[ENGLISH]:[PORTUGUÊS]],62,_SLOVENSKY),INDEX(tab_LANGUAGE[[ENGLISH]:[PORTUGUÊS]],62,_DEUTSCH),INDEX(tab_LANGUAGE[[ENGLISH]:[PORTUGUÊS]],62,_FRANCAIS),INDEX(tab_LANGUAGE[[ENGLISH]:[PORTUGUÊS]],62,_PORTUGUÊS))","v":"Voc START min."}]

{"sheet":"Modules","index":1,"n_rows":48,"n_cols":10,"rows_kept":48,"cut":false,"hidden":false,"merged":[]}
["Názov","Výrobca","Typ","Výkon [W]","Vmpp [V]","Impp [A]","Voc [V]","Isc [A]","V temp coeff [%/°C]","I temp coeff [%/°C]"]
["Žiadny"]
["Victron Energy SPM20-12 (SPM040201200)","Victron Energy","SPM20-12",20,18.5,1.0900000000000001,22.6,1.19,-0.35,0.04]
["Victron Energy SPM30-12 (SPM040301200)","Victron Energy","SPM30-12",30,18.7,1.61,22.87,1.76,-0.34,3.6999999999999998E-2]
["Victron Energy SPM40-12 (SPM040401200)","Victron Energy","SPM40-12",40,18.3,2.19,22.45,2.4,-0.35,0.04]
["Victron Energy SPM55-12 (SPM040551200)","Victron Energy","SPM55-12",55,18.8,2.94,22.9,3.22,-0.35,0.04]
["Victron Energy SPM90-12 (SPM040901200 )","Victron Energy","SPM90-12",90,19.600000000000001,4.59,24.06,5.03,-0.35,0.04]
["Victron Energy SPM115-12 (SPM041151200)","Victron Energy","SPM115-12",115,19,6.04,23.32,6.61,-0.35,0.04]
["Victron Energy SPM175-12 (SPM041751200)","Victron Energy","SPM175-12",175,19.399999999999999,9.0299999999999994,23.7,9.89,-0.35,0.04]
["Victron Energy SPM215-24 (SPM042152400)","Victron Energy","SPM215-24",215,37.4,5.75,45.82,6.3,-0.35,0.04]
["Victron Energy SPM305-20 (SPM043052000)","Victron Energy","SPM305-20",305,32.5,9.3800000000000008,39.700000000000003,10.27,-0.35,0.04]
["Victron Energy SPM360-24 (SPM043602400)","Victron Energy","SPM360-24",360,38.4,9.3800000000000008,47.4,10.24,-0.35,0.04]
["Victron Energy SPP20-12 (SPP040201200)","Victron Energy","SPP20-12",20,18.399999999999999,1.0900000000000001,21.96,1.18,-0.35,0.04]
["Victron Energy SPP30-12 (SPP040301200)","Victron Energy","SPP30-12",30,18.2,1.66,21.8,1.8,-0.35,0.04]
["Victron Energy SPP45-12 (SPP040451200)","Victron Energy","SPP45-12",45,19.100000000000001,2.36,22.9,2.5499999999999998,-0.35,0.04]
["Victron Energy SPP60-12 (SPP040601200)","Victron Energy","SPP60-12",60,19.3,3.12,23.1,3.37,-0.35,0.04]
["Victron Energy SPP90-12 (SPP040901200)","Victron Energy","SPP90-12",90,19.5,4.6100000000000003,23.44,4.9800000000000004,-0.35,0.04]
["Victron Energy SPP115-12 (SPP041151200)","Victron Energy","SPP115-12",115,18.940000000000001,6.08,22.73,6.56,-0.35,0.04]
["Victron Energy SPP175-12 (SPP041751200)","Victron Energy","SPP175-12",175,18.3,9.56,21.9,10.24,-0.35,0.04]
["Victron Energy SPP270-20 (SPP042702000)","Victron Energy","SPP270-20",270,31.7,8.52,38.04,9.2100000000000009,-0.34,4.4999999999999998E-2]
["Victron Energy SPP330-24 (SPP043302400)","Victron Energy","SPP330-24",330,37.299999999999997,8.86,44.72,9.57,-0.35,0.04]
["CanadianSolar HiKu PERC CS3W 455MS","CanadianSolar","CS3W 455MS",455,41.3,11.02,49.3,11.66,-0.26,0.05]
["CanadianSolar HiKu PERC CS3W 460MS","CanadianSolar","CS3W 460MS",460,41.5,11.09,49.5,11.72,-0.26,0.05]
["CanadianSolar HiKu6 Mono PERC CS6R 410MS","CanadianSolar","CS6R 410MS",410,31.2,13.15,37.200000000000003,14.01,-0.26,0.05]
["CanadianSolar HiKu6 Mono PERC CS6R 410MS BF","CanadianSolar","CS6R 410MS BF",410,31.2,13.15,37.200000000000003,14.01,-0.26,0.05]
["Q.PEAK DUO G9 355 Wp","Hanwha Q CELLS","DUO-G9 355 Wp",355,34.58,10.26,40.97,10.71,-0.27,0.04]
["Q.PEAK DUO G9 350 Wp","Hanwha Q CELLS","DUO-G9 350 Wp",350,34.31,10.199999999999999,40.94,10.68,-0.27,0.04]
["JA SOLAR JAM72S20 450/MR","JA SOLAR","JAM72S20 450/MR",450,41.52,10.84,49.7,11.36,-0.27200000000000002,4.3999999999999997E-2]
[]
[]
[]
[]
[]
[]
[]
[]
[]
[]
[{"$f":"IF(#REF!=6,INDEX(Language!B3:G50,40,6),IF(#REF!=5,INDEX(Language!B3:F50,40,1),IF(#REF!=4,INDEX(Language!B3:F50,40,2),IF(#REF!=3,INDEX(Language!B3:F50,40,3),IF(#REF!=2,INDEX(Language!B3:F50,40,4),INDEX(Language!B3:F50,40,5))))))","v":{"$error":"#REF!"}}]
[{"$f":"IF(#REF!=6,INDEX(Language!B3:G50,41,6),IF(#REF!=5,INDEX(Language!B3:F50,41,1),IF(#REF!=4,INDEX(Language!B3:F50,41,2),IF(#REF!=3,INDEX(Language!B3:F50,41,3),IF(#REF!=2,INDEX(Language!B3:F50,41,4),INDEX(Language!B3:F50,41,5))))))","v":{"$error":"#REF!"}}]
[{"$f":"IF(#REF!=6,INDEX(Language!B3:G50,42,6),IF(#REF!=5,INDEX(Language!B3:F50,42,1),IF(#REF!=4,INDEX(Language!B3:F50,42,2),IF(#REF!=3,INDEX(Language!B3:F50,42,3),IF(#REF!=2,INDEX(Language!B3:F50,42,4),INDEX(Language!B3:F50,42,5))))))","v":{"$error":"#REF!"}},null,24.1,"V"]
[{"$f":"IF(#REF!=6,INDEX(Language!B3:G50,43,6),IF(#REF!=5,INDEX(Language!B3:F50,43,1),IF(#REF!=4,INDEX(Language!B3:F50,43,2),IF(#REF!=3,INDEX(Language!B3:F50,43,3),IF(#REF!=2,INDEX(Language!B3:F50,43,4),INDEX(Language!B3:F50,43,5))))))","v":{"$error":"#REF!"}},null,-77,"mV/°C"]
[{"$f":"IF(#REF!=6,INDEX(Language!B3:G50,44,6),IF(#REF!=5,INDEX(Language!B3:F50,44,1),IF(#REF!=4,INDEX(Language!B3:F50,44,2),IF(#REF!=3,INDEX(Language!B3:F50,44,3),IF(#REF!=2,INDEX(Language!B3:F50,44,4),INDEX(Language!B3:F50,44,5))))))","v":{"$error":"#REF!"}},null,{"$f":"(C42/1000)/(C41/100)","v":-0.31950207468879666},"%/°C"]
[]
[{"$f":"IF(#REF!=6,INDEX(Language!B3:G50,45,6),IF(#REF!=5,INDEX(Language!B3:F50,45,1),IF(#REF!=4,INDEX(Language!B3:F50,45,2),IF(#REF!=3,INDEX(Language!B3:F50,45,3),IF(#REF!=2,INDEX(Language!B3:F50,45,4),INDEX(Language!B3:F50,45,5))))))","v":{"$error":"#REF!"}}]
[{"$f":"IF(#REF!=6,INDEX(Language!B3:G50,46,6),IF(#REF!=5,INDEX(Language!B3:F50,46,1),IF(#REF!=4,INDEX(Language!B3:F50,46,2),IF(#REF!=3,INDEX(Language!B3:F50,46,3),IF(#REF!=2,INDEX(Language!B3:F50,46,4),INDEX(Language!B3:F50,46,5))))))","v":{"$error":"#REF!"}},null,8.7200000000000006,"A"]
[{"$f":"IF(#REF!=6,INDEX(Language!B3:G50,47,6),IF(#REF!=5,INDEX(Language!B3:F50,47,1),IF(#REF!=4,INDEX(Language!B3:F50,47,2),IF(#REF!=3,INDEX(Language!B3:F50,47,3),IF(#REF!=2,INDEX(Language!B3:F50,47,4),INDEX(Language!B3:F50,47,5))))))","v":{"$error":"#REF!"}},null,4.7,"mA/°C"]
[{"$f":"IF(#REF!=6,INDEX(Language!B3:G50,48,6),IF(#REF!=5,INDEX(Language!B3:F50,48,1),IF(#REF!=4,INDEX(Language!B3:F50,48,2),IF(#REF!=3,INDEX(Language!B3:F50,48,3),IF(#REF!=2,INDEX(Language!B3:F50,48,4),INDEX(Language!B3:F50,48,5))))))","v":{"$error":"#REF!"}},null,{"$f":"(C47/1000)/(C46/100)","v":5.3899082568807342E-2},"%/°C"]

{"sheet":"Regulator","index":2,"n_rows":20,"n_cols":21,"rows_kept":20,"cut":false,"hidden":false,"merged":[[18,10,18,13]]}
["Názov","Výrobca","Typ","Power @ 12V","Power @ 24V","Power @ 36V","Power @ 48V","Voc max","Voc min","Vmpp min","S. voltage 1","S. voltage 2","S. voltage 3","S. voltage 4","IPV max","Ibat max","Efficiency@12","Efficiency@24","Efficiency@36","Efficiency@48"]
["Victron Energy Blue-/ SmartSolar MPPT 75/10","Victron Energy","Blue-/ SmartSolar MPPT 75/10",135,270,0,0,75,5,1,12,24,"N.A.","N.A.",13,10,0.98,0.98,0,0]
["Victron Energy Blue-/ SmartSolar MPPT 75/15","Victron Energy","Blue-/ SmartSolar MPPT 75/15",200,400,0,0,75,5,1,12,24,"N.A.","N.A.",15,15,0.98,0.98,0,0]
["Victron Energy Blue-/ SmartSolar MPPT 100/15","Victron Energy","Blue-/ SmartSolar MPPT 100/15",200,400,0,0,100,5,1,12,24,"N.A.","N.A.",15,15,0.98,0.98,0,0]
["Victron Energy Blue- /Smart Solar MPPT 100/20","Victron Energy","Blue- /Smart Solar MPPT 100/20",290,580,870,1160,100,5,1,12,24,36,48,20,20,0.98,0.98,0.98,0.98]
["Victron Energy Blue-/ SmartSolar MPPT 100/30","Victron Energy","Blue-/ SmartSolar MPPT 100/30",440,880,0,0,100,5,1,12,24,"N.A.","N.A.",35,30,0.98,0.98,0,0]
["Victron Energy Blue-/ SmartSolar MPPT 100/50","Victron Energy","Blue-/ SmartSolar MPPT 100/50",700,1400,0,0,100,5,1,12,24,"N.A.","N.A.",60,50,0.98,0.98,0,0]
["Victron Energy Blue-/ SmartSolar MPPT 150/35","Victron Energy","Blue-/ SmartSolar MPPT 150/35",500,1000,1500,2000,150,5,1,12,24,36,48,40,35,0.98,0.98,0.98,0.98]
["Victron Energy Blue-/ SmartSolar MPPT 150/45 Tr/MC4","Victron Energy","Blue-/ SmartSolar MPPT 150/45 Tr/MC4",650,1300,1950,2600,150,5,1,12,24,36,48,50,45,0.98,0.98,0.98,0.98]
["Victron Energy Blue-/ SmartSolar MPPT 150/60 Tr/MC4","Victron Energy","Blue-/ SmartSolar MPPT 150/60 Tr/MC4",860,1720,2580,3440,150,5,1,12,24,36,48,50,60,0.98,0.98,0.98,0.98]
["Victron Energy Blue-/ SmartSolar MPPT 150/70 Tr/Tr VE.Can/MC4","Victron Energy","Blue-/ SmartSolar MPPT 150/70 Tr/Tr VE.Can/MC4",1000,2000,3000,4000,150,5,1,12,24,36,48,50,70,0.98,0.98,0.98,0.98]
["Victron Energy SmartSolar MPPT 150/85 Tr/Tr VE.Can/MC4","Victron Energy","SmartSolar MPPT 150/85 Tr/Tr VE.Can/MC4",1200,2400,3600,4900,150,5,1,12,24,36,48,70,85,0.98,0.98,0.98,0.98]
["Victron Energy SmartSolar MPPT 150/100 Tr/Tr VE.Can/MC4","Victron Energy","SmartSolar MPPT 150/100 Tr/Tr VE.Can/MC4",1450,2900,4350,5800,150,5,1,12,24,36,48,70,100,0.98,0.98,0.98,0.98]
["Victron Energy SmartSolar MPPT 250/60 Tr/MC4","Victron Energy","SmartSolar MPPT 250/60 Tr/MC4",860,1720,2580,3440,250,5,1,12,24,36,48,35,60,0.99,0.99,0.99,0.99]
["Victron Energy SmartSolar MPPT 250/70 Tr/Tr VE.Can/MC4","Victron Energy","SmartSolar MPPT 250/70 Tr/Tr VE.Can/MC4",1000,2000,3000,4000,250,5,1,12,24,36,48,35,70,0.99,0.99,0.99,0.99]
["Victron Energy SmartSolar MPPT 250/85 Tr/Tr VE.Can/MC4","Victron Energy","SmartSolar MPPT 250/85 Tr/Tr VE.Can/MC4",1200,2400,3600,4900,250,5,1,12,24,36,48,70,85,0.99,0.99,0.99,0.99]
["Victron Energy SmartSolar MPPT 250/100 Tr/Tr VE.Can/MC4","Victron Energy","SmartSolar MPPT 250/100 Tr/Tr VE.Can/MC4",1450,2900,4350,5800,250,5,1,12,24,36,48,70,100,0.99,0.99,0.99,0.99]
[]
["RS Model","Manufacturer","Type","Power @ 12V","Power @ 24V","Power @ 36V","Power @ 48V","Voc max","Voc min","Vmpp min","System Voltage",null,null,null,"IPV max","Ibat max","Efficiency@12","Efficiency@24","Efficiency@36","Efficiency@48","Itracker"]
[{"$f":"B20&\" \"&C20","v":"Victron Energy SmartSolar MPPT RS 450/100"},"Victron Energy","SmartSolar MPPT RS 450/100",null,null,null,5760,450,120,80,"N.A.","N.A.","N.A.",48,18,100,0,0,0,0.96,70]

{"sheet":"Calculation table","index":3,"n_rows":50,"n_cols":11,"rows_kept":50,"cut":false,"hidden":false,"merged":[]}
[]
["DATA:"]
[]
["Location:",null,{"$f":"VALUE(LEFT(MPPT!E16,FIND(\" \",MPPT!E16)))","v":-15},"min",{"$f":"MPPT!E16","v":"-15 °C"}]
[null,null,{"$f":"VALUE(LEFT(MPPT!H16,FIND(\" \",MPPT!H16)))","v":45},"max",{"$f":"MPPT!H16","v":"45 °C"}]
[]
["Module info:",null,{"$f":"INDEX(tab_MODUL[[Výrobca]:[I temp coeff '[%/°C']]],_Modul,6)*_Serial","v":147.89999999999998},"Voc @25°C"]
[null,null,{"$f":"INDEX(tab_MODUL[[Výrobca]:[I temp coeff '[%/°C']]],_Modul,4)*_Serial","v":123.89999999999999},"Vmpp @25°C"]
[null,null,{"$f":"INDEX(tab_MODUL[[Výrobca]:[I temp coeff '[%/°C']]],_Modul,7)*_Paralel","v":23.32},"Isc PV@25°C"]
[null,null,{"$f":"INDEX(tab_MODUL[[Výrobca]:[I temp coeff '[%/°C']]],_Modul,5)*_Paralel","v":22.04},"Impp PV @25°C"]
[null,null,{"$f":"$C$10*$C$8/E20","v":56.890749999999997},"Impp output @25°C"]
[null,null,{"$f":"INDEX(tab_MODUL[[Výrobca]:[I temp coeff '[%/°C']]],_Modul,8)","v":-0.26},"Temp. Coeff. Voc"]
[null,null,{"$f":"(C7/100)*C12","v":-0.38453999999999999},"Temp. Coeff. Voc absolute"]
[null,null,{"$f":"INDEX(tab_MODUL[[Výrobca]:[I temp coeff '[%/°C']]],_Modul,9)","v":0.05},"Temp. Coeff. Isc"]
[null,null,{"$f":"C9*(C14/100)","v":1.166E-2},"Temp. Coeff. Isc absolute"]
[null,null,{"$f":"MPPT!G11","v":2730},"Choosen PV power"]
[]
["Regulator info:",null,{"$f":"INDEX(tab_REGULATOR[[Výrobca]:[Efficiency@48]],_Regulator,7)","v":250},"Voc max",{"$f":"INDEX(tab_REGULATOR[[Výrobca]:[Ibat max]],_Regulator,15)","v":100},"Ibat max"]
[null,null,{"$f":"INDEX(tab_REGULATOR[[Výrobca]:[Efficiency@48]],_Regulator,8)+E20","v":53},"Voc min",{"$f":"INDEX(tab_REGULATOR[[Výrobca]:[Ibat max]],_Regulator,14)","v":70},"IPV max"]
[null,null,{"$f":"INDEX(tab_REGULATOR[[Výrobca]:[Efficiency@48]],MPPT!K8,9)+E20","v":49},"Vmpp min",{"$f":"IF(INDEX(MPPT!$Q$7:$Q$10,MPPT!$K$8,1)=\"N.A.\",0,INDEX(MPPT!$Q$7:$Q$10,MPPT!$K$8,1))","v":48},"System voltage",{"$f":"IF(E20=12,16,IF(E20=24,17,IF(E20=36,18,19)))","v":19}]
[null,null,{"$f":"IF(E20=48,INDEX(tab_REGULATOR[[Power @ 12V]:[Power @ 48V]],_Regulator,4),IF(E20=36,INDEX(tab_REGULATOR[[Power @ 12V]:[Power @ 48V]],_Regulator,3),IF(E20=24,INDEX(tab_REGULATOR[[Power @ 12V]:[Power @ 48V]],_Regulator,2),IF(E20=12,INDEX(tab_REGULATOR[[Power @ 12V]:[Power @ 48V]],_Regulator,1),0))))","v":5800},"Possible charge power (from datasheet) without limiting PV power",{"$f":"INDEX(tab_REGULATOR[[Výrobca]:[Efficiency@48]],_Regulator,G20)","v":0.99},"Max. Efficiency"]
[]
["Voltage drop: ",null,1.78E-2,"Cupper resistance"]
[null,null,{"$f":"((MPPT!K10+MPPT!K10)*C23)/MPPT!K14","v":5.9333333333333328E-2},"Factor"]
[]
[]
["RESULTS Blue- & SmartSolar :"]
[]
["Temperature",null,"Voc max.","Voc START min.","Vmpp RUN min.","String Voc max.","String Vmpp max.","String Vmpp corr.max.","String Voc min.","String Vmpp min.","String Vmpp corr. min."]
[{"$f":"IF(_Temp=1,B30, ((B30)*9/5)+32)","v":-15},{"$f":"C4","v":-15},{"$f":"$C$18","v":250},{"$f":"$C$19","v":53},{"$f":"$C$20","v":49},{"$f":"$C$7+($C$13*-(25-B30))","v":163.28159999999997},{"$f":"$C$8+($C$13*-(25-B30))","v":139.2816},{"$f":"($C$8+($C$13*-(25-B30))-($C$24*D40))","v":138.0015664}]
[-10,{"$f":"B30+5","v":-10},{"$f":"$C$18","v":250},{"$f":"$C$19","v":53},{"$f":"$C$20","v":49},{"$f":"$C$7+($C$13*-(25-B31))","v":161.35889999999998},{"$f":"$C$8+($C$13*-(25-B31))","v":137.35890000000001},{"$f":"($C$8+($C$13*-(25-B31))-($C$24*D41))","v":136.07540726666667}]
[-5,{"$f":"B31+5","v":-5},250,53,49,{"$f":"$C$7+($C$13*-(25-B32))","v":159.43619999999999},{"$f":"$C$8+($C$13*-(25-B32))","v":135.43619999999999},{"$f":"($C$8+($C$13*-(25-B32))-($C$24*D42))","v":134.14924813333332}]
[0,{"$f":"B32+5","v":0},250,53,49,{"$f":"$C$7+($C$13*-(25-B33))","v":157.51349999999996},{"$f":"$C$8+($C$13*-(25-B33))","v":133.51349999999999},{"$f":"($C$8+($C$13*-(25-B33))-($C$24*D43))","v":132.22308899999999}]
[30,{"$f":"B35-5","v":30},250,53,49,null,null,null,{"$f":"$C$7+($C$13*-(25-B34))","v":145.97729999999999},{"$f":"$C$8+($C$13*-(25-B34))","v":121.97729999999999},{"$f":"$C$8+($C$13*-(25-B34))-($C$24*D44)","v":120.66613419999999}]
[35,{"$f":"B36-5","v":35},250,53,49,null,null,null,{"$f":"$C$7+($C$13*-(25-B35))","v":144.05459999999997},{"$f":"$C$8+($C$13*-(25-B35))","v":120.05459999999999},{"$f":"$C$8+($C$13*-(25-B35))-($C$24*D45)","v":118.73997506666666}]
[40,{"$f":"B37-5","v":40},250,53,49,null,null,null,{"$f":"$C$7+($C$13*-(25-B36))","v":142.13189999999997},{"$f":"$C$8+($C$13*-(25-B36))","v":118.13189999999999},{"$f":"$C$8+($C$13*-(25-B36))-($C$24*D46)","v":116.81381593333332}]
[45,{"$f":"C5","v":45},250,53,49,null,null,null,{"$f":"$C$7+($C$13*-(25-B37))","v":140.20919999999998},{"$f":"$C$8+($C$13*-(25-B37))","v":116.2092},{"$f":"$C$8+($C$13*-(25-B37))-($C$24*D47)","v":114.8876568}]
[]
["Temperature",null,"Ibat max.","Impp PV max.","System Voltage","Ibat max. @ Impp","Ibat min. @ Impp"]
[{"$f":"IF(_Temp=1,B40, ((B40)*9/5)+32)","v":-15},{"$f":"C4","v":-15},{"$f":"$E$18","v":100},{"$f":"$C$10+($C$15*-(25-B40))","v":21.573599999999999},{"$f":"$E$20","v":48},{"$f":"IF((((D40*G30)/E40)*$E$21)>$E$18,$E$18,(((D40*G30)/E40)*$E$21))","v":61.974113968799998}]
[-10,{"$f":"B40+5","v":-10},{"$f":"$E$18","v":100},{"$f":"$C$10+($C$15*-(25-B41))","v":21.631899999999998},{"$f":"$E$20","v":48},{"$f":"IF((((D41*G31)/E41)*$E$21)>$E$18,$E$18,(((D41*G31)/E41)*$E$21))","v":61.283763521268746}]
[-5,{"$f":"B41+5","v":-5},100,21.690200000000001,48,{"$f":"IF((((D42*G32)/E42)*$E$21)>$E$18,$E$18,(((D42*G32)/E42)*$E$21))","v":60.588789220574995}]
[0,{"$f":"B42+5","v":0},100,21.7485,48,{"$f":"IF((((D43*G33)/E43)*$E$21)>$E$18,$E$18,(((D43*G33)/E43)*$E$21))","v":59.889191066718745}]
[30,{"$f":"B45-5","v":30},100,22.098299999999998,48,null,{"$f":"IF(((D44*J34)/E44*$E$21)>$E$18,$E$18,((D44*J34)/E44*$E$21))","v":55.594501227168735}]
[35,{"$f":"B46-5","v":35},100,22.156599999999997,48,null,{"$f":"IF(((D45*J35)/E45*$E$21)>$E$18,$E$18,((D45*J35)/E45*$E$21))","v":54.862536101174996}]
[40,{"$f":"B47-5","v":40},100,22.2149,48,null,{"$f":"IF(((D46*J36)/E46*$E$21)>$E$18,$E$18,((D46*J36)/E46*$E$21))","v":54.125947122018744}]
[45,{"$f":"C5","v":45},100,22.273199999999999,48,null,{"$f":"IF(((D47*J37)/E47*$E$21)>$E$18,$E$18,((D47*J37)/E47*$E$21))","v":53.384734289699992}]
[]
["PV Power ratio",null,{"$f":"C16/C21","v":0.47068965517241379},"If more than 1.3 the user becomes an alert that he/ she is oversizing the PV generator with more than 30%"]
["Maximum power point PV current is higher than maximum regulator input current",null,null,null,{"$f":"IF(C10>E19, TRUE, FALSE)","v":false}]

{"sheet":"Language","index":4,"n_rows":70,"n_cols":6324,"rows_kept":70,"cut":false,"hidden":false,"merged":[]}
[null,{"$f":"IF(MPPT!J3=1,\"P\",\" \")","v":" "},{"$f":"IF(MPPT!J3=2,\"P\",\" \")","v":" "},{"$f":"IF(MPPT!J3=3,\"P\",\" \")","v":"P"},{"$f":"IF(MPPT!J3=4,\"P\",\" \")","v":" "},{"$f":"IF(MPPT!J3=5,\"P\",\" \")","v":" "},{"$f":"IF(MPPT!J3=6,\"P\",\" \")","v":" "}]
["Pos.","ENGLISH","DUTCH","SLOVENSKY","DEUTSCH","FRANCAIS","PORTUGUÊS"]
[1,"Module:","Paneel:","Modul:","Modul:","Panneau:","Módulo FV"]
[2,"In series:","In serie:","Do série:","In Reihe:","En serie:","Em serie:"]
[3,"Parallel:","Parallel:","Paralelne:","Parallel:","Parallèle:","Em paralelo"]
[4,"Total PV power @STC:","Totale PV vermogen @STC:","Celkový FV výkon @STC:","PV Leistung insgesamt @STC:","Puissance PV totale @STC:","Potência total FV @STC"]
[5,"Wp","Wp","Wp","Wp","Wc","Wp"]
[6,"Module temperature:","Paneel temperatuur:","Teplota modulu:","Modul Temperatur:","Température Paneau:","Temp. módulo FV "]
[7,"Min.","Min.","Min.","Min.","Min.","Min."]
[8,"Max. ","Max.","Max.","Max.","Max.","Max."]
[9,"Controller:","Regelaar:","Regulátor:","Regler:","Régulateur:","Controlador"]
[10,"System voltage:","Systeem spanning:","Systémové napätie:","System Spannung:","Tension du système:","Voltagem do sistema "]
[11,"Max. input voltage","Max. ingangsspanning","Max. vstupné napätie","Max. Eingangspannung:","Tension d'entrée max.:","Voltagem máxima de entrada "]
[12,"Max. PV voltage @ min. temperature","Max. PV spanning @ min. temp.","Max. FV napätie @ min. teplota","Max. PV Spannung @ min. Temp.","PV tension max. @ temp. min.","Voltagem max FV@Temp min "]
[13,"Min. input voltage @ MPP","Min. ingangsspanning @ MPP","Min. vstupné napätie @ MPP","Min. Eingangspannung @ MPP","Tension d'entrée min. @ MPP","Voltagem min. de entrada  @ MPPT"]
[14,"Min. PV voltage @ max. temperature","Min. PV spanning @ max. Temp.","Min. FV napätie @ max. teplota","Min. PV Spannung @ max. Temp.","PV tension min. @ temp. max.","Voltagem min. FV @ Temperatura max."]
[15,"Max. output current","Max. uitgangsstroom","Max. výstupný prúd","Max. Ausgangstrom","Courant de sortie max.","Corrente max. de saida"]
[16,"Max. current @ MPP min. temp.","Max. stroom @ MPP min. temp.","Max. prúd @ MPP min. tepl.","Max. Strom @ MPP min. Temp.","Courant max. @ MPP temp. min.","Corrente max. @ MPPT temp. min."]
[17,"Max. current @ MPP max. temp.","Max. stroom @ MPP max. temp.","Max. prúd @ MPP max. tepl.","Max. Strom @ MPP max. Temp.","Courant max. @ MPP temp. max.","Corrente max. @ MPPT temp. max."]
[18,"Solar module configuration","Zonne-paneel configuratie","Konfigurácia solárneho modulu","Solar Modul Auslegung","Configuration du panneau","Configuração do módulo FV"]
[19,"Example locations with expected temperatures:","Voorbeeld lokaties en verwachte temperatuur:","Príklady lokalít s očakávanými teplotami:","Beispiel Standort und erwartete Temperatur:","Exemple de localisation de site avec la température attendue:","Exemplos de localização com temperaturas previstas:"]
[20,"Flat on mobile home, all year (poor ventilation)","Vlak op camper, gehele jaar (slechte ventilatie)","Byt na mobilnom dome, po celý rok (slabé vetranie)","Flach auf Wohnmobil, ganze Jahr (schlechte Hinterlüftung)","À plat sur toit de camping-car  toute l'année (mauvaise ventilation)","Num plano reto no motorhome, durante todo o ano (má ventilação)"]
[21,"Flat on mobile home, only summer (poor ventilation)","Vlak op camper, alleen zomers (slechte ventilatie)","Byt na mobilnom dome, len leto (slabé vetranie)","Flach auf Wohnmobil, nur Sommer (schlechte Hinterlüftung)","À plat sur camping-car , seulement l'été (mauvaise ventilation)","Num plano reto no motorhome, somente no verão (má ventilação)"]
[22,"Flat on boat (poor ventilation)","Vlak op boot (slechte ventilatie)","Ploché na lodi (slabé vetranie)","Flach auf Boot (schlechte Hinterlüftung)","À plat sur ​​le bateau (mauvaise ventilation)","Num plano reto no barco (má ventilação)"]
[23,"Pitched on boat (good ventilation)","Onder helling op boot (goede ventilatie)","Naklonené na lodi (dobré vetranie)","Geneigt auf Boot (gute Hinterlüftung)","Inclinée sur bateau (bonne ventilation)","Inclinado no barco (boa ventilação)"]
[24,"Pitched roof in warm region (good ventilation)","Op schuin dak warme omgeving (goede ventilatie)","Šikmá strecha v teplej oblasti (dobré vetranie)","Schrägdach, warme Umgebung (gute Hinterlüftung)","Toit en pente, en région chaude (bonne ventilation)","Teto inclinado numa região quente (boa ventilação)"]
[25,"Pitched roof in average region (good ventilation)","Op schuin dak gemiddelde omgeving (goede ventilatie)","Šikmá strecha v priemernej oblasti (dobré vetranie)","Schrägdach, mittlere Regio (gute Hinterlüftung)","Toit en pente, région tempérée (bonne ventilation)","Teto inclinado numa região templada (boa ventilação)"]
[26,"Pitched roof on mountain (good ventilation)","Op schuin dak in de bergen (goede ventilatie)","Šikmá strecha na kopci (dobré vetranie)","Schrägdach, in Bergen (gute Hinterlüftung)","Toit en pente, en montagne (bonne ventilation)","Teto inclinado nas montanha - frio (boa ventilação)"]
[27,"* Power limiting @ low temp.","* Vermogens begrenzing @ lage temp.","* Obmedzenie výkonu @ nízka teplota.","* Leistung Begrenzung @ niedrige Temp.","* Limitation de puissance @ basse temp.","* Redução de potência @ Temp. baixa"]
[28,"** Power limiting @ high temp.","** Vermogens begrenzing @ hoge temp.","** Obmedzenie výkonu @ vysoká teplota.","** Leistung Begrenzung @ hohe Temp.","** Limitation de puissance @ haute temp.","** Redução de potência @ Temp. alta"]
[29,"Input voltage window string","Ingangspanning venster","Vstupné napätia","Eingangspannungsfenster String","Fourchette de tension","Faixa de voltagem"]
[30,"Charge current window","Laadstroom venster","Nabíjacie prúdy","Ladestromfenster","Fourchette de courant","Faixa de corrente"]
[31,"Cable length, Module to MPPT *","Kabel lengte, paneel tot MPPT *","Dĺžka kábla, modul k MPPT *","Kabel Länge, Modul zum MPPT *","Longueur cable, Paneaux à MPPT *","Comprimento do cabo entre o modulo e o MPPT *"]
[32,"Cross-section:","Doorsnede:","Prierez:","Querschnitt:","Section:","Corte transversal:"]
[33,"* One way length","* Enkele afstand","* Jednosmerná dĺžka","* Einfache Distanz","* La distance simple"," * Distância de um só cabo"]
[34,"Are the solar modules covered with snow many periods a year?","Zijn de panelen gedurende veel periodes bedekt met sneeuw?","Sú solárne moduly pokryté snehom väčšinu obdobia v roku?","Sind die Solar Module öfters im Jahr bedeckt mit Schnee?","Les panneaux PV sont-ils souvent couverts de neige ?"," ¿Vai cair neve nos modulos ?"]
[35,"Yes","Ja","Áno","Ja","Oui","Sim"]
[36,"No","Nee","Nie","Nein","Non","Não"]
[37,"Accepted","Toegestaan","Vyhovujúci","Erlaubt","Accepté","Aceito "]
[38,"NOT accepted","NIET toegestaan","Nevyhovujúci","NICHT erlaubt","PAS accepté","NÃO aceito "]
[39,"Attention: More than 30% oversized PV generator","Attentie: Meer dan 30% overgedimensioneerde PV generator","Pozor: Viac ako 30% predimenzovaný FV generátor","Achtung: Mehr als 30% überdimensionierte PV Generator","Attention, surdimensionnement PV supérieur à 30% ! Non recommandé financièrement !","Nota: existe sobredimensionamento do gerador FV  de mais do 30%"]
[40,"Coefficient support:","Koefficient berekening:","Koeficientová podpora:","Koeffizientenberechnung:","Coefficients de température:","Calculo do coeficiente de temperatura",null,null,null,null,null,null,null,null,null,null,null,null,null,null,null,null,null,null,null,null,null,null,null,null,null,null,null,null,null,null,null,null,null,null,null,null,null,null,null,null,null,null,null,null,null,null,null,null,null,null,null,null,null,null,null,null,null,null,null,null,null,null,null,null,null,null,null,null,null,null,null,null,null,null,null,null,null,null,null,null,null,null,null,null,null,null,null,null,null,null,null,null,null,null,null,null,null,null,null,null,null,null,null,null,null,null,null,null,null,null,null,null,null,null,null,null,null,null,null,null,null,null,null,null,null,null,null,null,null,null,null,null,null,null,null,null,null,null,null,null,null,null,null,null,null,null,null,null,null,null,null,null,null,null,null,null,null,null,null,null,null,null,null,null,null,null,null,null,null,null,null,null,null,null,null,null,null,null,null,null,null,null,null,null,null,null,null,null,null,null,null,null,null,null,null,null,null,null,null,null,null,null,null,null,null,null,null,null,null,null,null,null,null,null,null,null,null,null,null,null,null,null,null,null,null,null,null,null,null,null,null,null,null,null,null,null,null,null,null,null,null,null,null,null,null,null,null,null,null,null,null,null,null,null,null,null,null,null,null,null,null,null,null,null,null,null,null,null,null,null,null,null,null,null,null,null,null,null,null,null,null,null,null,null,null,null,null,null,null,null,null,null,null,null,null,null,null,null,null,null,null,null,null,null,null,null,null,null,null,null,null,null,null,null,null,null,null,null,null,null,null,null,null,null,null,null,null,null,null,null,null,null,null,null,null,null,null,null,null,null,null,null,null,null,null,null,null,null,null,null,null,null,null,null,null,null,null,null,null,null,null,null,null,null,null,null,null,null,null,null,null,null,null,null,null,null,null,null,null,null,null,null,null,null,null,null,null,null,null,null,null,null,null,null,null,null,null,null,null,null,null,null,null,null,null,null,null,null,null,null,null,null,null,null,null,null,null,null,null,null,null,null,null,null,null,null,null,null,null,null,null,null,null,null,null,null,null,null,null,null,null,null,null,null,null,null,null,null,null,null,null,null,null,null,null,null,null,null,null,null,null,null,null,null,null,null,null,null,null,null,null,null,null,null,null,null,null,null,null,null,null,null,null,null,null,null,null,null,null,null,null,null,null,null,null,null,null,null,null,null,null,null,null,null,null,null,null,null,null,null,null,null,null,null,null,null,null,null,null,null,null,null,null,null,null,null,null,null,null,null,null,null,null,null,null,null,null,null,null,null,null,null,null,null,null,null,null,null,null,null,null,null,null,null,null,null,null,null,null,null,null,null,null,null,null,null,null,null,null,null,null,null,null,null,null,null,null,null,null,null,null,null,null,null,null,null,null,null,null,null,null,null,null,null,null,null,null,null,null,null,null,null,null,null,null,null,null,null,null,null,null,null,null,null,null,null,null,null,null,null,null,null,null,null,null,null,null,null,null,null,null,null,null,null,null,null,null,null,null,null,null,null,null,null,null,null,null,null,null,null,null,null,null,null,null,null,null,null,null,null,null,null,null,null,null,null,null,null,null,null,null,null,null,null,null,null,null,null,null,null,null,null,null,null,null,null,null,null,null,null,null,null,null,null,null,null,null,null,null,null,null,null,null,null,null,null,null,null,null,null,null,null,null,null,null,null,null,null,null,null,null,null,null,null,null,null,null,null,null,null,null,null,null,null,null,null,null,null,null,null,null,null,null,null,null,null,null,null,null,null,null,null,null,null,null,null,null,null,null,null,null,null,null,null,null,null,null,null,null,null,null,null,null,null,null,null,null,null,null,null,null,null,null,null,null,null,null,null,null,null,null,null,null,null,null,null,null,null,null,null,null,null,null,null,null,null,null,null,null,null,null,null,null,null,null,null,null,null,null,null,null,null,null,null,null,null,null,null,null,null,null,null,null,null,null,null,null,null,null,null,null,null,null,null,null,null,null,null,null,null,null,null,null,null,null,null,null,null,null,null,null,null,null,null,null,null,null,null,null,null,null,null,null,null,null,null,null,null,null,null,null,null,null,null,null,null,null,null,null,null,null,null,null,null,null,null,null,null,null,null,null,null,null,null,null,null,null,null,null,null,null,null,null,null,null,null,null,null,null,null,null,null,null,null,null,null,null,null,null,null,null,null,null,null,null,null,null,null,null,null,null,null,null,null,null,null,null,null,null,null,null,null,null,null,null,null,null,null,null,null,null,null,null,null,null,null,null,null,null,null,null,null,null,null,null,null,null,null,null,null,null,null,null,null,null,null,null,null,null,null,null,null,null,null,null,null,null,null,null,null,null,null,null,null,null,null,null,null,null,null,null,null,null,null,null,null,null,null,null,null,null,null,null,null,null,null,null,null,null,null,null,null,null,null,null,null,null,null,null,null,null,null,null,null,null,null,null,null,null,null,null,null,null,null,null,null,null,null,null,null,null,null,null,null,null,null,null,null,null,null,null,null,null,null,null,null,null,null,null,null,null,null,null,null,null,null,null,null,null,null,null,null,null,null,null,null,null,null,null,null,null,null,null,null,null,null,null,null,null,null,null,null,null,null,null,null,null,null,null,null,null,null,null,null,null,null,null,null,null,null,null,null,null,null,null,null,null,null,null,null,null,null,null,null,null,null,null,null,null,null,null,null,null,null,null,null,null,null,null,null,null,null,null,null,null,null,null,null,null,null,null,null,null,null,null,null,null,null,null,null,null,null,null,null,null,null,null,null,null,null,null,null,null,null,null,null,null,null,null,null,null,null,null,null,null,null,null,null,null,null,null,null,null,null,null,null,null,null,null,null,null,null,null,null,null,null,null,null,null,null,null,null,null,null,null,null,null,null,null,null,null,null,null,null,null,null,null,null,null,null,null,null,null,null,null,null,null,null,null,null,null,null,null,null,null,null,null,null,null,null,null,null,null,null,null,null,null,null,null,null,null,null,null,null,null,null,null,null,null,null,null,null,null,null,null,null,null,null,null,null,null,null,null,null,null,null,null,null,null,null,null,null,null,null,null,null,null,null,null,null,null,null,null,null,null,null,null,null,null,null,null,null,null,null,null,null,null,null,null,null,null,null,null,null,null,null,null,null,null,null,null,null,null,null,null,null,null,null,null,null,null,null,null,null,null,null,null,null,null,null,null,null,null,null,null,null,null,null,null,null,null,null,null,null,null,null,null,null,null,null,null,null,null,null,null,null,null,null,null,null,null,null,null,null,null,null,null,null,null,null,null,null,null,null,null,null,null,null,null,null,null,null,null,null,null,null,null,null,null,null,null,null,null,null,null,null,null,null,null,null,null,null,null,null,null,null,null,null,null,null,null,null,null,null,null,null,null,null,null,null,null,null,null,null,null,null,null,null,null,null,null,null,null,null,null,null,null,null,null,null,null,null,null,null,null,null,null,null,null,null,null,null,null,null,null,null,null,null,null,null,null,null,null,null,null,null,null,null,null,null,null,null,null,null,null,null,null,null,null,null,null,null,null,null,null,null,null,null,null,null,null,null,null,null,null,null,null,null,null,null,null,null,null,null,null,null,null,null,null,null,null,null,null,null,null,null,null,null,null,null,null,null,null,null,null,null,null,null,null,null,null,null,null,null,null,null,null,null,null,null,null,null,null,null,null,null,null,null,null,null,null,null,null,null,null,null,null,null,null,null,null,null,null,null,null,null,null,null,null,null,null,null,null,null,null,null,null,null,null,null,null,null,null,null,null,null,null,null,null,null,null,null,null,null,null,null,null,null,null,null,null,null,null,null,null,null,null,null,null,null,null,null,null,null,null,null,null,null,null,null,null,null,null,null,null,null,null,null,null,null,null,null,null,null,null,null,null,null,null,null,null,null,null,null,null,null,null,null,null,null,null,null,null,null,null,null,null,null,null,null,null,null,null,null,null,null,null,null,null,null,null,null,null,null,null,null,null,null,null,null,null,null,null,null,null,null,null,null,null,null,null,null,null,null,null,null,null,null,null,null,null,null,null,null,null,null,null,null,null,null,null,null,null,null,null,null,null,null,null,null,null,null,null,null,null,null,null,null,null,null,null,null,null,null,null,null,null,null,null,null,null,null,null,null,null,null,null,null,null,null,null,null,null,null,null,null,null,null,null,null,null,null,null,null,null,null,null,null,null,null,null,null,null,null,null,null,null,null,null,null,null,null,null,null,null,null,null,null,null,null,null,null,null,null,null,null,null,null,null,null,null,null,null,null,null,null,null,null,null,null,null,null,null,null,null,null,null,null,null,null,null,null,null,null,null,null,null,null,null,null,null,null,null,null,null,null,null,null,null,null,null,null,null,null,null,null,null,null,null,null,null,null,null,null,null,null,null,null,null,null,null,null,null,null,null,null,null,null,null,null,null,null,null,null,null,null,null,null,null,null,null,null,null,null,null,null,null,null,null,null,null,null,null,null,null,null,null,null,null,null,null,null,null,null,null,null,null,null,null,null,null,null,null,null,null,null,null,null,null,null,null,null,null,null,null,null,null,null,null,null,null,null,null,null,null,null,null,null,null,null,null,null,null,null,null,null,null,null,null,null,null,null,null,null,null,null,null,null,null,null,null,null,null,null,null,null,null,null,null,null,null,null,null,null,null,null,null,null,null,null,null,null,null,null,null,null,null,null,null,null,null,null,null,null,null,null,null,null,null,null,null,null,null,null,null,null,null,null,null,null,null,null,null,null,null,null,null,null,null,null,null,null,null,null,null,null,null,null,null,null,null,null,null,null,null,null,null,null,null,null,null,null,null,null,null,null,null,null,null,null,null,null,null,null,null,null,null,null,null,null,null,null,null,null,null,null,null,null,null,null,null,null,null,null,null,null,null,null,null,null,null,null,null,null,null,null,null,null,null,null,null,null,null,null,null,null,null,null,null,null,null,null,null,null,null,null,null,null,null,null,null,null,null,null,null,null,null,null,null,null,null,null,null,null,null,null,null,null,null,null,null,null,null,null,null,null,null,null,null,null,null,null,null,null,null,null,null,null,null,null,null,null,null,null,null,null,null,null,null,null,null,null,null,null,null,null,null,null,null,null,null,null,null,null,null,null,null,null,null,null,null,null,null,null,null,null,null,null,null,null,null,null,null,null,null,null,null,null,null,null,null,null,null,null,null,null,null,null,null,null,null,null,null,null,null,null,null,null,null,null,null,null,null,null,null,null,null,null,null,null,null,null,null,null,null,null,null,null,null,null,null,null,null,null,null,null,null,null,null,null,null,null,null,null,null,null,null,null,null,null,null,null,null,null,null,null,null,null,null,null,null,null,null,null,null,null,null,null,null,null,null,null,null,null,null,null,null,null,null,null,null,null,null,null,null,null,null,null,null,null,null,null,null,null,null,null,null,null,null,null,null,null,null,null,null,null,null,null,null,null,null,null,null,null,null,null,null,null,null,null,null,null,null,null,null,null,null,null,null,null,null,null,null,null,null,null,null,null,null,null,null,null,null,null,null,null,null,null,null,null,null,null,null,null,null,null,null,null,null,null,null,null,null,null,null,null,null,null,null,null,null,null,null,null,null,null,null,null,null,null,null,null,null,null,null,null,null,null,null,null,null,null,null,null,null,null,null,null,null,null,null,null,null,null,null,null,null,null,null,null,null,null,null,null,null,null,null,null,null,null,null,null,null,null,null,null,null,null,null,null,null,null,null,null,null,null,null,null,null,null,null,null,null,null,null,null,null,null,null,null,null,null,null,null,null,null,null,null,null,null,null,null,null,null,null,null,null,null,null,null,null,null,null,null,null,null,null,null,null,null,null,null,null,null,null,null,null,null,null,null,null,null,null,null,null,null,null,null,null,null,null,null,null,null,null,null,null,null,null,null,null,null,null,null,null,null,null,null,null,null,null,null,null,null,null,null,null,null,null,null,null,null,null,null,null,null,null,null,null,null,null,null,null,null,null,null,null,null,null,null,null,null,null,null,null,null,null,null,null,null,null,null,null,null,null,null,null,null,null,null,null,null,null,null,null,null,null,null,null,null,null,null,null,null,null,null,null,null,null,null,null,null,null,null,null,null,null,null,null,null,null,null,null,null,null,null,null,null,null,null,null,null,null,null,null,null,null,null,null,null,null,null,null,null,null,null,null,null,null,null,null,null,null,null,null,null,null,null,null,null,null,null,null,null,null,null,null,null,null,null,null,null,null,null,null,null,null,null,null,null,null,null,null,null,null,null,null,null,null,null,null,null,null,null,null,null,null,null,null,null,null,null,null,null,null,null,null,null,null,null,null,null,null,null,null,null,null,null,null,null,null,null,null,null,null,null,null,null,null,null,null,null,null,null,null,null,null,null,null,null,null,null,null,null,null,null,null,null,null,null,null,null,null,null,null,null,null,null,null,null,null,null,null,null,null,null,null,null,null,null,null,null,null,null,null,null,null,null,null,null,null,null,null,null,null,null,null,null,null,null,null,null,null,null,null,null,null,null,null,null,null,null,null,null,null,null,null,null,null,null,null,null,null,null,null,null,null,null,null,null,null,null,null,null,null,null,null,null,null,null,null,null,null,null,null,null,null,null,null,null,null,null,null,null,null,null,null,null,null,null,null,null,null,null,null,null,null,null,null,null,null,null,null,null,null,null,null,null,null,null,null,null,null,null,null,null,null,null,null,null,null,null,null,null,null,null,null,null,null,null,null,null,null,null,null,null,null,null,null,null,null,null,null,null,null,null,null,null,null,null,null,null,null,null,null,null,null,null,null,null,null,null,null,null,null,null,null,null,null,null,null,null,null,null,null,null,null,null,null,null,null,null,null,null,null,null,null,null,null,null,null,null,null,null,null,null,null,null,null,null,null,null,null,null,null,null,null,null,null,null,null,null,null,null,null,null,null,null,null,null,null,null,null,null,null,null,null,null,null,null,null,null,null,null,null,null,null,null,null,null,null,null,null,null,null,null,null,null,null,null,null,null,null,null,null,null,null,null,null,null,null,null,null,null,null,null,null,null,null,null,null,null,null,null,null,null,null,null,null,null,null,null,null,null,null,null,null,null,null,null,null,null,null,null,null,null,null,null,null,null,null,null,null,null,null,null,null,null,null,null,null,null,null,null,null,null,null,null,null,null,null,null,null,null,null,null,null,null,null,null,null,null,null,null,null,null,null,null,null,null,null,null,null,null,null,null,null,null,null,null,null,null,null,null,null,null,null,null,null,null,null,null,null,null,null,null,null,null,null,null,null,null,null,null,null,null,null,null,null,null,null,null,null,null,null,null,null,null,null,null,null,null,null,null,null,null,null,null,null,null,null,null,null,null,null,null,null,null,null,null,null,null,null,null,null,null,null,null,null,null,null,null,null,null,null,null,null,null,null,null,null,null,null,null,null,null,null,null,null,null,null,null,null,null,null,null,null,null,null,null,null,null,null,null,null,null,null,null,null,null,null,null,null,null,null,null,null,null,null,null,null,null,null,null,null,null,null,null,null,null,null,null,null,null,null,null,null,null,null,null,null,null,null,null,null,null,null,null,null,null,null,null,null,null,null,null,null,null,null,null,null,null,null,null,null,null,null,null,null,null,null,null,null,null,null,null,null,null,null,null,null,null,null,null,null,null,null,null,null,null,null,null,null,null,null,null,null,null,null,null,null,null,null,null,null,null,null,null,null,null,null,null,null,null,null,null,null,null,null,null,null,null,null,null,null,null,null,null,null,null,null,null,null,null,null,null,null,null,null,null,null,null,null,null,null,null,null,null,null,null,null,null,null,null,null,null,null,null,null,null,null,null,null,null,null,null,null,null,null,null,null,null,null,null,null,null,null,null,null,null,null,null,null,null,null,null,null,null,null,null,null,null,null,null,null,null,null,null,null,null,null,null,null,null,null,null,null,null,null,null,null,null,null,null,null,null,null,null,null,null,null,null,null,null,null,null,null,null,null,null,null,null,null,null,null,null,null,null,null,null,null,null,null,null,null,null,null,null,null,null,null,null,null,null,null,null,null,null,null,null,null,null,null,null,null,null,null,null,null,null,null,null,null,null,null,null,null,null,null,null,null,null,null,null,null,null,null,null,null,null,null,null,null,null,null,null,null,null,null,null,null,null,null,null,null,null,null,null,null,null,null,null,null,null,null,null,null,null,null,null,null,null,null,null,null,null,null,null,null,null,null,null,null,null,null,null,null,null,null,null,null,null,null,null,null,null,null,null,null,null,null,null,null,null,null,null,null,null,null,null,null,null,null,null,null,null,null,null,null,null,null,null,null,null,null,null,null,null,null,null,null,null,null,null,null,null,null,null,null,null,null,null,null,null,null,null,null,null,null,null,null,null,null,null,null,null,null,null,null,null,null,null,null,null,null,null,null,null,null,null,null,null,null,null,null,null,null,null,null,null,null,null,null,null,null,null,null,null,null,null,null,null,null,null,null,null,null,null,null,null,null,null,null,null,null,null,null,null,null,null,null,null,null,null,null,null,null,null,null,null,null,null,null,null,null,null,null,null,null,null,null,null,null,null,null,null,null,null,null,null,null,null,null,null,null,null,null,null,null,null,null,null,null,null,null,null,null,null,null,null,null,null,null,null,null,null,null,null,null,null,null,null,null,null,null,null,null,null,null,null,null,null,null,null,null,null,null,null,null,null,null,null,null,null,null,null,null,null,null,null,null,null,null,null,null,null,null,null,null,null,null,null,null,null,null,null,null,null,null,null,null,null,null,null,null,null,null,null,null,null,null,null,null,null,null,null,null,null,null,null,null,null,null,null,null,null,null,null,null,null,null,null,null,null,null,null,null,null,null,null,null,null,null,null,null,null,null,null,null,null,null,null,null,null,null,null,null,null,null,null,null,null,null,null,null,null,null,null,null,null,null,null,null,null,null,null,null,null,null,null,null,null,null,null,null,null,null,null,null,null,null,null,null,null,null,null,null,null,null,null,null,null,null,null,null,null,null,null,null,null,null,null,null,null,null,null,null,null,null,null,null,null,null,null,null,null,null,null,null,null,null,null,null,null,null,null,null,null,null,null,null,null,null,null,null,null,null,null,null,null,null,null,null,null,null,null,null,null,null,null,null,null,null,null,null,null,null,null,null,null,null,null,null,null,null,null,null,null,null,null,null,null,null,null,null,null,null,null,null,null,null,null,null,null,null,null,null,null,null,null,null,null,null,null,null,null,null,null,null,null,null,null,null,null,null,null,null,null,null,null,null,null,null,null,null,null,null,null,null,null,null,null,null,null,null,null,null,null,null,null,null,null,null,null,null,null,null,null,null,null,null,null,null,null,null,null,null,null,null,null,null,null,null,null,null,null,null,null,null,null,null,null,null,null,null,null,null,null,null,null,null,null,null,null,null,null,null,null,null,null,null,null,null,null,null,null,null,null,null,null,null,null,null,null,null,null,null,null,null,null,null,null,null,null,null,null,null,null,null,null,null,null,null,null,null,null,null,null,null,null,null,null,null,null,null,null,null,null,null,null,null,null,null,null,null,null,null,null,null,null,null,null,null,null,null,null,null,null,null,null,null,null,null,null,null,null,null,null,null,null,null,null,null,null,null,null,null,null,null,null,null,null,null,null,null,null,null,null,null,null,null,null,null,null,null,null,null,null,null,null,null,null,null,null,null,null,null,null,null,null,null,null,null,null,null,null,null,null,null,null,null,null,null,null,null,null,null,null,null,null,null,null,null,null,null,null,null,null,null,null,null,null,null,null,null,null,null,null,null,null,null,null,null,null,null,null,null,null,null,null,null,null,null,null,null,null,null,null,null,null,null,null,null,null,null,null,null,null,null,null,null,null,null,null,null,null,null,null,null,null,null,null,null,null,null,null,null,null,null,null,null,null,null,null,null,null,null,null,null,null,null,null,null,null,null,null,null,null,null,null,null,null,null,null,null,null,null,null,null,null,null,null,null,null,null,null,null,null,null,null,null,null,null,null,null,null,null,null,null,null,null,null,null,null,null,null,null,null,null,null,null,null,null,null,null,null,null,null,null,null,null,null,null,null,null,null,null,null,null,null,null,null,null,null,null,null,null,null,null,null,null,null,null,null,null,null,null,null,null,null,null,null,null,null,null,null,null,null,null,null,null,null,null,null,null,null,null,null,null,null,null,null,null,null,null,null,null,null,null,null,null,null,null,null,null,null,null,null,null,null,null,null,null,null,null,null,null,null,null,null,null,null,null,null,null,null,null,null,null,null,null,null,null,null,null,null,null,null,null,null,null,null,null,null,null,null,null,null,null,null,null,null,null,null,null,null,null,null,null,null,null,null,null,null,null,null,null,null,null,null,null,null,null,null,null,null,null,null,null,null,null,null,null,null,null,null,null,null,null,null,null,null,null,null,null,null,null,null,null,null,null,null,null,null,null,null,null,null,null,null,null,null,null,null,null,null,null,null,null,null,null,null,null,null,null,null,null,null,null,null,null,null,null,null,null,null,null,null,null,null,null,null,null,null,null,null,null,null,null,null,null,null,null,null,null,null,null,null,null,null,null,null,null,null,null,null,null,null,null,null,null,null,null,null,null,null,null,null,null,null,null,null,null,null,null,null,null,null,null,null,null,null,null,null,null,null,null,null,null,null,null,null,null,null,null,null,null,null,null,null,null,null,null,null,null,null,null,null,null,null,null,null,null,null,null,null,null,null,null,null,null,null,null,null,null,null,null,null,null,null,null,null,null,null,null,null,null,null,null,null,null,null,null,null,null,null,null,null,null,null,null,null,null,null,null,null,null,null,null,null,null,null,null,null,null,null,null,null,null,null,null,null,null,null,null,null,null,null,null,null,null,null,null,null,null,null,null,null,null,null,null,null,null,null,null,null,null,null,null,null,null,null,null,null,null,null,null,null,null,null,null,null,null,null,null,null,null,null,null,null,null,null,null,null,null,null,null,null,null,null,null,null,null,null,null,null,null,null,null,null,null,null,null,null,null,null,null,null,null,null,null,null,null,null,null,null,null,null,null,null,null,null,null,null,null,null,null,null,null,null,null,null,null,null,null,null,null,null,null,null,null,null,null,null,null,null,null,null,null,null,null,null,null,null,null,null,null,null,null,null,null,null,null,null,null,null,null,null,null,null,null,null,null,null,null,null,null,null,null,null,null,null,null,null,null,null,null,null,null,null,null,null,null,null,null,null,null,null,null,null,null,null,null,null,null,null,null,null,null,null,null,null,null,null,null,null,null,null,null,null,null,null,null,null,null,null,null,null,null,null,null,null,null,null,null,null,null,null,null,null,null,null,null,null,null,null,null,null,null,null,null,null,null,null,null,null,null,null,null,null,null,null,null,null,null,null,null,null,null,null,null,null,null,null,null,null,null,null,null,null,null,null,null,null,null,null,null,null,null,null,null,null,null,null,null,null,null,null,null,null,null,null,null,null,null,null,null,null,null,null,null,null,null,null,null,null,null,null,null,null,null,null,null,null,null,null,null,null,null,null,null,null,null,null,null,null,null,null,null,null,null,null,null,null,null,null,null,null,null,null,null,null,null,null,null,null,null,null,null,null,null,null,null,null,null,null,null,null,null,null,null,null,null,null,null,null,null,null,null,null,null,null,null,null,null,null,null,null,null,null,null,null,null,null,null,null,null,null,null,null,null,null,null,null,null,null,null,null,null,null,null,null,null,null,null,null,null,null,null,null,null,null,null,null,null,null,null,null,null,null,null,null,null,null,null,null,null,null,null,null,null,null,null,null,null,null,null,null,null,null,null,null,null,null,null,null,null,null,null,null,null,null,null,null,null,null,null,null,null,null,null,null,null,null,null,null,null,null,null,null,null,null,null,null,null,null,null,null,null,null,null,null,null,null,null,null,null,null,null,null,null,null,null,null,null,null,null,null,null,null,null,null,null,null,null,null,null,null,null,null,null,null,null,null,null,null,null,null,null,null,null,null,null,null,null,null,null,null,null,null,null,null,null,null,null,null,null,null,null,null,null,null,null,null,null,null,null,null,null,null,null,null,null,null,null,null,null,null,null,null,null,null,null,null,null,null,null,null,null,null,null,null,null,null,null,null,null,null,null,null,null,null,null,null,null,null,null,null,null,null,null,null,null,null,null,null,null,null,null,null,null,null,null,null,null,null,null,null,null,null,null,null,null,null,null,null,null,null,null,null,null,null,null,null,null,null,null,null,null,null,null,null,null,null,null,null,null,null,null,null,null,null,null,null,null,null,null,null,null,null,null,null,null,null,null,null,null,null,null,null,null,null,null,null,null,null,null,null,null,null,null,null,null,null,null,null,null,null,null,null,null,null,null,null,null,null,null,null,null,null,null,null,null,null,null,null,null,null,null,null,null,null,null,null,null,null,null,null,null,null,null,null,null,null,null,null,null,null,null,null,null,null,null,null,null,null,null,null,null,null,null,null,null,null,null,null,null,null,null,null,null,null,null,null,null,null,null,null,null,null,null,null,null,null,null,null,null,null,null,null,null,null,null,null,null,null,null,null,null,null,null,null,null,null,null,null,null,null,null,null,null,null,null,null,null,null,null,null,null,null,null,null,null,null,null,null,null,null,null,null,null,null,null,null,null,null,null,null,null,null,null,null,null,null,null,null,null,null,null,null,null,null,null,null,null,null,null,null,null,null,null,null,null,null,null,null,null,null,null,null,null,null,null,null,null,null,null,null,null,null,null,null,null,null,null,null,null,null,null,null,null,null,null,null,null,null,null,null,null,null,null,null,null,null,null,null,null,null,null,null,null,null,null,null,null,null,null,null,null,null,null,null,null,null,null,null,null,null,null,null,null,null,null,null,null,null,null,null,null,null,null,null,null,null,null,null,null,null,null,null,null,null,null,null,null,null,null,null,null,null,null,null,null,null,null,null,null,null,null,null,null,null,null,null,null,null,null,null,null,null,null,null,null,null,null,null,null,null,null,null,null,null,null,null,null,null,null,null,null,null,null,null,null,null,null,null,null,null,null,null,null,null,null,null,null,null,null,null,null,null,null,null,null,null,null,null,null,null,null,null,null,null,null,null,null,null,null,null,null,null,null,null,null,null,null,null,null,null,null,null,null,null,null,null,null,null,null,null,null,null,null,null,null,null,null,null,null,null,null,null,null,null,null,null,null,null,null,null,null,null,null,null,null,null,null,null,null,null,null,null,null,null,null,null,null,null,null,null,null,null,null,null,null,null,null,null,null,null,null,null,null,null,null,null,null,null,null,null,null,null,null,null,null,null,null,null,null,null,null,null,null,null,null,null,null,null,null,null,null,null,null,null,null,null,null,null,null,null,null,null,null,null,null,null,null,null,null,null,null,null,null,null,null,null,null,null,null,null,null,null,null,null,null,null,null,null,null,null,null,null,null,null,null,null,null,null,null,null,null,null,null,null,null,null,null,null,null,null,null,null,null,null,null,null,null,null,null,null,null,null,null,null,null,null,null,null,null,null,null,null,null,null,null,null,null,null,null,null,null,null,null,null,null,null,null,null,null,null,null,null,null,null,null,null,null,null,null,null,null,null,null,null,null,null,null,null,null,null,null,null,null,null,null,null,null,null,null,null,null,null,null,null,null,null,null,null,null,null,null,null,null,null,null,null,null,null,null,null,null,null,null,null,null,null,null,null,null,null,null,null,null,null,null,null,null,null,null,null,null,null,null,null,null,null,null,null,null,null,null,null,null,null,null,null,null,null,null,null,null,null,null,null,null,null,null,null,null,null,null,null,null,null,null,null,null,null,null,null,null,null,null,null,null,null,null,null,null,null,null,null,null,null,null,null,null,null,null,null,null,null,null,null,null,null,null,null,null,null,null,null,null,null,null,null,null,null,null,null,null,null,null,null,null,null,null,null,null,null,null,null,null,null,null,null,null,null,null,null,null,null,null,null,null,null,null,null,null,null,null,null,null,null,null,null,null,null,null,null,null,null,null,null,null,null,null,null,null,null,null,null,null,null,null,null,null,null,null,null,null,null,null,null,null,null,null,null,null,null,null,null,null,null,null,null,null,null,null,null,null,null,null,null,null,null,null,null,null,null,null,null,null,null,null,null,null,null,null,null,null,null,null,null,null,null,null,null,null,null,null,null,null,null,null,null,null,null,null,null,null,null,null,null,null,null,null,null,null,null,null,null,null,null,null,null,null,null,null,null,null,null,null,null,null,null,null,null,null,null,null,null,null,null,null,null,null,null,null,null,null,null,null,null,null,null,null,null,null,null,null,null,null,null,null,null,null,null,null,null,null,null,null,null,null,null,null,null,null,null,null,null,null,null,null,null,null,null,null,null,null,null,null,null,null,null,null,null,null,null,null,null,null,null,null,null,null,null,null,null,null,null,null,null,null,null,null,null,null,null,null,null,null,null,null,null,null,null,null,null,null,null,null,null,null,null,null,null,null,null,null,null,null,null,null,null,null,null,1]
[41,"If you have the voltage temperature coefficient in mV/°C, here is how to change it to %/°C","Hier kunt U de spanning koeffizient van mV/°C naar %/°C omrekenen","Ak máte teplotný koeficient napätia v mV/°C, tu je návod, ako ho zmeniť na %/°C","Hier können Sie die Spannungskoeffizient von mV/°C in %/°C wandeln","Si vous avez le Coefficient de température à tension de circuit ouvert  en mV/°C , voici comment changer ce coefficient en %/°C","Caso tiver o coeficiente de temperatura de voltagem em mV/°C, pode ser trocado para %/°C"]
[42,"Write the Voc value in Volt:","Schrijf hier de Voc waarde in Volt:","Napíšte hodnotu Voc vo voltoch:","Schreiben Sie den Voc Wert in Volt:","Ecrire la valeur de la VOC en Volt:","Escreve o valor do Voc (voltagem do circuito abierto) em volts"]
[43,"Write the coefficient value in mV/°C:","Schrijf hier de koefficient waarde in mV/°C:","Napíšte hodnotu koeficientu v mV/°C:","Schreiben Sie den Koeffizient Wert in mV/°C:","Ecrire la valeur du coefficient en mV/°C:","Escreve o valor do coeficiente em mV/°C:"]
[44,"The coefficent value in %/°C is now:","De berekende koefficient in %/°C is nu:","Hodnota koeficientu v %/°C je teraz:","Der errechneter Koeffizient in %/°C ist jetzt:","La valeur du coefficient en %/°C est de:","O valor do coeficiente en %/°C agora:"]
[45,"If you have the current temperature coefficient in mA/°C, here is how to change it to %/°C","Hier kunt U de stroom koeffizient van mA/°C naar %/°C omrekenen","Ak máte aktuálny teplotný koeficient v mA/°C, tu je návod, ako ho zmeniť na %/°C","Hier können Sie die Stromkoeffizient von mA/°C in %/°C wandeln","Si vous avez le Coefficient de température à Courant de Court-Cicuit en mA/°C, voici comment changer ce coefficient en %/°C","Se tem o coeficiente de temperatura atual em mA/°C, pode ser trocado para %/°C"]
[46,"Write the Isc value in Ampere:","Schrijf hier de Isc waarde in Ampere:","Napíšte hodnotu Isc v ampéroch:","Schreiben Sie den Isc Wert in Ampere:","Ecrire la valeur de Isc en Ampère:","Escreve o valor do Isc (corrente de curtocircuito) em ampers"]
[47,"Write the coefficient value in mA/°C:","Schrijf hier de koefficient waarde in mA/°C:","Napíšte hodnotu koeficientu v mA/°C:","Schreiben Sie den Koeffizient Wert in mA/°C:","Ecrire la valeur du coefficient en mA/°C:","Escreve o valor do coeficiente em mA/°C:"]
[48,"The coefficent value in %/°C is now:","De berekende koefficient in %/°C is nu:","Hodnota koeficientu v %/°C je teraz:","Der errechneter Koeffizient in %/°C ist jetzt:","La valeur du coefficient en %/°C est de :","O coeficiente em %/°C :"]
[49,"Warning: PV current is higher than MPPT max. input current","Waarschuwing: PV stroom is hoger dan max. ingangstroom MPPT","Upozornenie: FV prúd je vyšší ako MPPT max. vstupný prúd","Warnung: PV Strom ist höher als max. erlaubter Eingangstrom MPPT","Attention! Le courant PV est supérieur au courant d’entrée maximum du MPPT ","Cuidado: A corrente FV é superior à máxima corrente de entrada do MPPT"]
[50,"Max. total output current","Max. totale uitgangsstroom","Max. celkový výstupný prúd","Max. totale Ausgangstrom","Courant de sortie total max","Corrente saída máxima"]
[51,"Max. total current @ MPP min. temp.","Max. totale stroom @ MPP min. temp.","Max. celkový prúd @ MPP min. tepl.","Max. totale Strom @ MPP min. Temp.","Courant max total @ MPP temp. min.","Máx. corrente total @ MPP temp. min."]
[52,"Max. total current @ MPP max. temp.","Max. totale stroom @ MPP max. temp.","Max. celkový prúd @ MPP max. tepl.","Max. totale Strom @ MPP max. Temp.","Courant max total @ MPP temp. max.","Máx. corrente total @ MPP temp. máx."]
[53,"Battery float voltage","Accu float spanning","Plavákové napätie batérie","Batterie Float Spannung","Tension de batterie float","Tensão de flutuação da bateria"]
[54,"Warning: charge power is reduced to max MPPT Tracker power","Waarschuwing: laadvermogen wordt reduceerd tot max MPPT tracker vermogen","Upozornenie: Nabíjací výkon je znížený na maximálny výkon MPPT Tracker","Warnung: ladeleistung wird auf max MPPT Tracker Leistung reduziert","Attention : puissance de charge réduite à la puissance de tracker MPPT max.","Atenção, a potência de carga é reduzida ao valor máximo de saída do seguidor do ponto de potência máxima"]
[55,"PV string power @STC","PV string vermogen @STC","Výkon PV reťazca @STC","PV Stringleistung @STC","Puissance de chaine PV @ STC","Potência da série fotovoltaica @STC"]
[56,"String Voc max.","Snaar Voc max.","Rad Voc max.","Schnur Voc max.","String Voc max.","Corda Voc max."]
[57,"String Vmpp corr. min.","Snaar Vmpp corr. min.","Rad Vmpp corr. min.","Schnur Vmpp corr. min.","String Vmpp corr. min.","Corda Vmpp corr. min."]
[58,"Vmpp RUN min.","Vmpp RUN min.","Vmpp RUN min.","Vmpp RUN min.","Vmpp RUN min.","Vmpp RUN min."]
[59,"String Vmpp corr.max.","Snaar Vmpp corr.max.","Rad Vmpp corr.max.","Schnur Vmpp corr.max.","String Vmpp corr.max.","Corda Vmpp corr.max."]
[60,"Voc max.","Voc max.","Voc max.","Voc max.","Voc max.","Voc max."]
[61,"String Voc min.","Snaar Voc min.","Rad Voc min.","Schnur Voc min.","String Voc min.","Corda Voc min."]
[62,"Voc START min.","Voc START min.","Voc START min.","Voc START min.","Voc START min.","Voc START min."]
[63,"Print the CHART as an image","Druk de KAART af als afbeelding","Vytlačiť GRAF ako obrázok","Drucken Sie das DIAGRAMM als Bild aus","Imprimer le TABLEAU sous forme d'image","Imprima o GRÁFICO como uma imagem"]
[64,"Number of modules","Aantal modules","Počet modulov","Anzahl der Module","Nombre de modules","Número de módulos"]
[65,"Table of values","Tabel met waarden","Tabuľka hodnôt","Wertetabelle","Tableau des valeurs","Tabela de valores"]
[66,"Temperature","Temperatuur","Teplota","Temperatur","Température","Temperatura"]
[67," Blue- & SmartSolar MPPT charge controller","Blue- & SmartSolar MPPT laadregelaar","Regulátor nabíjania Blue- & SmartSolar MPPT","Blue- & SmartSolar MPPT Laderegler","Régulateur de charge Blue- & SmartSolar MPPT","Controlador de carga Blue- & SmartSolar MPPT"]
[68,"Dark mode","Donkere modus","Tmavý režim","Dunkler Modus","Mode sombre","Modo escuro"]